Cogmind - Beta 13 X1 @@@ ROGUE MODE // 2023.08.19 @ 20:50:13 Player: MTF Result: Crushed by singularity! Performance ------------- Evolutions (9) 4500 Regions Visited (34) 6800 Robots Destroyed (468) 2340 Value Destroyed (24741) 24741 Prototype IDs (297) 5940 Alien Tech Used (10) 2000 Bonus (56095) 56095 TOTAL SCORE: 102416 Bonus ------- High Alert Combat Kills 6231 Follower Combat Kills 4260 Met Data Miner 300 Met Imprinter 300 Destroyed Z-Imprinter 1000 Met Warlord at Base 500 MAIN.C Attacked Warlord 500 Met R17 at Cetus 500 Used Core Reset Matrix 3000 Met Warlord at Research 2000 Scanned by Researcher 500 Pursued by Intercept 1000 Destroyed MAIN.C Guards 500 Met MAIN.C 5000 Destroyed MAIN.C Shell 5000 Destroyed MAIN.C 10000 Met Warlord at Command 2000 Met Architect 300 Destroyed A8 300 Destroyed Architect 15000 Friendly Fire -2096 Cogmind --------- Core Integrity 0/1600 Matter 260/300 Energy 100/100 System Corruption 0% Temperature Cool (0) Movement Core (50) Location -1/Access_0 Parts ------- > --- POWER (3) -------- (None) > --- PROPULSION (6) --- (None) > --- UTILITY (11) ----- (None) > --- WEAPON (6) ------- (None) > --- INVENTORY (5) ---- Advanced Heavy Siege Treads Core Cannon Peak State ------------ > --- POWER ------------ Improved Quantum Reactor Zero-point Reactor Zero-point Reactor > --- PROPULSION ------- Biometal Heavy Treads Enhanced Armored Heavy Treads Advanced Heavy Siege Treads > --- UTILITY ---------- Cargo Storage Unit System Mapper Wardrone Bay > --- WEAPON ----------- Enhanced Nova Cannon Enhanced Nova Cannon Omega Cannon Sigix Broadsword > --- INVENTORY -------- Armored Heavy Treads Biometal Heavy Treads Zionite Biocell Zionite Biocell Advanced Transmission Jammer Heavy Regenerative Plating Graphene Brace Improved Force Field Improved Force Field Long-range Tractor Beam Transdimensional Reconstructor Core Regenerator Subatomic Replicator Enhanced Nova Cannon Core Cannon BFG-9k Vortex Edition Linked Autogun Meganuke [Rating: 302] Favorites ----------- Power Zero-point Reactor Engine Improved Deuterium Engine Power Core Micro Fission Core Reactor Zero-point Reactor Propulsion Armored Huge Wheel Treads Light Treads Leg Flexi-carbon Leg Wheel Armored Huge Wheel Utility Advanced Targeting Computer Device Experimental Heat Sink Storage Cargo Storage Unit Processor Advanced Targeting Computer Hackware Advanced Hacking Suite Protection Hardened Heavy Armor Plating Weapon Enhanced Nova Cannon Energy Gun Advanced Variable Charge Gun Energy Cannon Enhanced Nova Cannon Ballistic Gun Enhanced Autogun Ballistic Cannon Omega Cannon Launcher Improved Grenade Launcher Special Weapon Mining Laser Impact Weapon Great Maul Slashing Weapon Sigix Broadsword Piercing Weapon Makeshift Spear Special Melee Weapon Advanced Datajack Build | -11 -10 -10 -10 -8 -8 -7 -7 -7 -7 -7 -6 -6 -6 -6 -6 -5 -5 -5 -5 -5 -5 -4 -4 -4 -4 -3 -3 -3 -2 -2 -2 -1 -1 -1 ------- Run | Jun Mat Min Sub Mat Sto Fac Low Low Zio Dee Pro Fac Low Low Dat Pro Fac Ext Cet Arc Hub Fac Upp Upp War Pro Res Qua Res Tes Sec Acc Com Ac0 Slots Evolved 18 | . . . . 4 . 2 . . . . . 2 . . . . 2 . . . . 2 . . . . 2 . 2 . . 2 . . Power 1 | . . . . . . 1 . . . . . . . . . . . . . . . . . . . . . . . . . . . . Propulsion 4 | . . . . 2 . . . . . . . . . . . . . . . . . 2 . . . . . . . . . . . . Utility 9 | . . . . 2 . 1 . . . . . 2 . . . . 2 . . . . . . . . . 2 . . . . . . . Weapon 4 | . . . . . . . . . . . . . . . . . . . . . . . . . . . . . 2 . . 2 . . Parts Attached 700 | 1 8 . 17 31 34 33 13 3 7 21 5 14 4 5 25 18 17 11 40 10 16 72 9 18 33 16 18 35 27 19 22 27 71 . Power 73 | . 1 . 1 3 2 3 2 . . 1 . 2 . 1 1 2 3 1 6 2 2 10 . 2 4 1 . 3 2 3 1 4 10 . Engine 17 | . 1 . 1 1 2 2 2 . . . . 2 . 1 . 2 1 . 1 . . 1 . . . . . . . . . . . . Core 17 | . . . . 2 . 1 . . . . . . . . 1 . 2 1 1 . 1 5 . 2 1 . . . . . . . . . Reactor 39 | . . . . . . . . . . 1 . . . . . . . . 4 2 1 4 . . 3 1 . 3 2 3 1 4 10 . Propulsion 116 | . 2 . 1 7 11 3 . . . 1 . 2 . . 4 5 1 . 7 2 2 26 . 3 9 2 3 10 5 . . 1 9 . Treads 53 | . 2 . 1 7 11 . . . . . . . . . 2 . . . 2 2 2 3 . 1 . 1 2 5 5 . . 1 6 . Leg 35 | . . . . . . . . . . . . . . . . 3 . . 3 . . 11 . 2 9 1 1 5 . . . . . . Wheel 28 | . . . . . . 3 . . . 1 . 2 . . 2 2 1 . 2 . . 12 . . . . . . . . . . 3 . Hover . | . . . . . . . . . . . . . . . . . . . . . . . . . . . . . . . . . . . Flight . | . . . . . . . . . . . . . . . . . . . . . . . . . . . . . . . . . . . Utility 246 | 1 1 . 1 7 6 8 2 . 4 9 3 4 . 2 10 5 8 6 6 3 8 19 1 9 11 2 11 12 14 10 17 18 28 . Device 148 | 1 . . . 2 3 2 1 . 1 4 2 2 . 1 3 2 1 4 3 2 6 10 1 9 6 1 8 11 11 10 17 11 13 . Storage 15 | . 1 . . 2 . 1 . . . 1 . . . . 1 . . . . . . . . . 1 . 2 . . . . 2 4 . Processor 22 | . . . . 1 2 . . . 1 . . 1 . . . . 3 . 1 . . 2 . . 2 . 1 . 2 . . 1 5 . Hackware 7 | . . . . . . 1 . . . . . . . . . . . . . . . 4 . . . . . 1 . . . 1 . . Protection 54 | . . . 1 2 1 4 1 . 2 4 1 1 . 1 6 3 4 2 2 1 2 3 . . 2 1 . . 1 . . 3 6 . Artifact . | . . . . . . . . . . . . . . . . . . . . . . . . . . . . . . . . . . . Weapon 265 | . 4 . 14 14 15 19 9 3 3 10 2 6 4 2 10 6 5 4 21 3 4 17 8 4 9 11 4 10 6 6 4 4 24 . Energy Gun 45 | . 2 . 2 2 1 . . . . 2 . . . . . . . . 4 . 2 9 7 4 5 . 2 . . . . . 3 . Energy Cannon 54 | . . . 2 . . . . . . . . . . . . . . 3 2 1 . . . . 3 11 1 5 3 3 3 2 15 . Ballistic Gun 74 | . . . 6 7 9 9 4 . 2 3 1 3 1 1 4 3 3 . 10 2 1 . . . . . . . . 1 1 . 3 . Ballistic Cannon 9 | . . . . . . . . . . . . . . . . . . . . . . 5 . . . . . . . 1 . 2 1 . Launcher 24 | . . . . 1 1 3 4 1 . 2 . 1 2 1 1 . 1 1 5 . . . . . . . . . . . . . . . Special Weapon 10 | . 2 . 4 4 . . . . . . . . . . . . . . . . . . . . . . . . . . . . . . Impact Weapon 19 | . . . . . 4 7 1 1 1 2 1 2 . . . . . . . . . . . . . . . . . . . . . . Slashing Weapon 13 | . . . . . . . . . . . . . . . . . . . . . . . 1 . 1 . 1 5 2 1 . . 2 . Piercing Weapon 16 | . . . . . . . . 1 . 1 . . 1 . 5 3 1 . . . 1 3 . . . . . . . . . . . . Special Melee Weapon 1 | . . . . . . . . . . . . . . . . . . . . . . . . . . . . . 1 . . . . . Unidentified Prototypes 51 | . . . . 2 5 . . . . 9 . 1 . 1 2 1 . . 4 . . . . . 9 . . 3 5 4 1 1 3 . Parts Lost 106 | . . . 3 . 2 . 2 . . 1 1 1 1 . 11 2 2 3 20 2 7 18 . 4 . 1 2 1 . 1 . 5 15 1 Power 27 | . . . 1 . . . 1 . . . . . . . 3 1 1 1 6 . 1 5 . 2 . 1 . . . . . 2 2 . Propulsion 25 | . . . 1 . . . . . . . . . . . 3 . . . 5 . 2 9 . 1 . . . . . . . 1 3 . Utility 37 | . . . . . 1 . . . . . 1 1 1 . 5 1 1 2 5 1 3 3 . 1 . . 2 1 . 1 . 1 5 1 Weapon 17 | . . . 1 . 1 . 1 . . 1 . . . . . . . . 4 1 1 1 . . . . . . . . . 1 5 . Highest Loss Streak 11 | . . . 2 . 1 . 1 . . 1 1 1 1 . 5 2 1 2 8 1 3 8 . 3 . 1 1 1 . 1 . 2 11 1 To Critical Strikes 3 | . . . . . . . . . . . . . . . . . . . 3 . . . . . . . . . . . . . . . Average Slot Usage (%) 76 | . 100 100 85 94 99 74 68 69 71 75 76 77 80 80 73 69 75 82 73 83 83 89 95 94 92 85 82 81 51 48 49 59 67 38 Engine 5 | . 14 14 14 2 9 14 14 15 15 9 7 10 13 17 8 7 8 5 1 . . . . . . . . . . . . . . . Core 2 | . . . . 6 . . . . . . . . . . 2 . 3 11 3 5 5 6 10 12 10 . . . . . . . . . Reactor 4 | . . . . . . . . . . 5 7 1 . . . . . . 7 11 11 6 5 2 2 10 9 9 12 11 12 10 8 3 Treads 9 | . 16 28 28 34 36 2 . . . . . . . . 2 . . . 2 14 16 8 . . . 4 4 6 13 12 12 10 9 5 Leg 4 | . 11 . . . . . . . . . . . . . . . . . 5 . . 7 30 29 30 20 18 19 . . . . . . Wheel 5 | . . . . . . 13 15 15 15 15 15 11 13 12 10 11 10 11 2 . . 10 . . . . . . . . . . 2 . Device 10 | . 14 14 1 14 7 . . . . 5 7 18 13 12 9 12 11 13 15 16 21 15 20 19 16 19 22 18 7 8 7 7 11 7 Storage 5 | . 14 14 1 8 9 7 7 7 7 7 7 6 6 6 6 6 5 5 5 5 5 5 5 5 5 5 4 4 4 4 4 3 6 1 Processor 6 | . . . . . 9 10 7 7 9 9 7 7 13 12 12 12 15 13 12 6 3 8 5 5 5 10 9 13 . . . 1 6 7 Hackware 1 | . . . . . . . . . . . . . . . . . . . . . . 6 10 10 9 . . 3 . . . 2 . . Protection 5 | . . . 12 8 10 6 6 7 6 6 7 6 6 6 7 4 7 10 3 11 7 2 . . 3 5 3 . . . . 2 3 1 Energy Gun 2 | . 22 28 5 . . . . . . . . . . . . . . . 3 . 1 7 10 10 3 . 1 . . . . . 4 3 Energy Cannon 3 | . . . 8 . . . . . . . . . . . . . . 8 1 2 3 . . . 1 8 5 2 6 7 7 10 7 3 Ballistic Gun 5 | . . . 12 17 17 12 7 7 9 9 11 10 7 7 5 8 7 . 6 8 4 . . . . . . . . . . . . . Naked Turns 12 | . . . . . . . . . . . . . . . . . . . . . . . . . . . . . . . . . . 12 Heaviest Build 307 | 13 20 20 35 108 111 188 191 188 184 177 178 180 180 187 186 165 181 204 222 228 228 221 180 181 235 250 252 230 292 300 285 307 289 . Greatest Support 240 | 20 40 40 40 88 93 84 56 56 56 56 56 56 56 56 56 76 56 56 80 136 136 192 120 120 161 161 136 155 235 235 235 235 240 3 Greatest Overweight (x) 16 | . . . . 1 1 4 3 3 3 3 3 6 3 3 5 5 5 3 16 2 1 11 1 1 1 2 2 4 1 1 1 1 12 . Average Overweight (x) 1 | . . . . . 1 2 2 3 2 2 3 3 3 2 3 2 2 3 8 1 1 1 1 1 1 1 1 1 1 . 1 1 . . Largest Inventory Capacity 30 | 8 10 10 10 25 25 30 30 30 30 30 30 30 30 30 30 30 30 30 30 30 30 30 30 30 30 30 30 30 30 30 30 30 30 25 Average Capacity 27 | 8 9 10 5 19 25 27 30 30 30 30 30 30 30 30 30 30 30 30 30 30 30 30 30 30 30 30 30 30 30 30 30 30 27 14 Most Carried 30 | 7 10 9 9 23 25 26 26 25 28 30 30 30 30 30 29 28 30 30 28 30 30 30 30 30 30 30 30 30 30 30 30 30 30 24 Average Carried 24 | 6 8 9 5 17 24 24 23 24 26 28 29 29 30 29 23 24 26 27 24 28 29 27 29 29 29 29 29 29 28 29 28 27 20 13 Final Capacity 30 | 8 10 10 5 25 25 30 30 30 30 30 30 30 30 30 30 30 30 30 30 30 30 30 30 30 30 30 30 30 30 30 30 30 25 5 Final Carried 30 | 7 9 9 5 23 24 26 23 25 27 30 29 30 30 29 24 26 30 27 27 29 29 29 30 29 30 30 30 30 30 27 30 29 24 4 Class Distribution -------------------- 47% | Hauler-Mutant 20% | Scavenger-Mutant 10% | Mutant 6% | Subdweller-Mutant 4% | Alien-Mutant 4% | Alien-Executioner Dominant Class ---------------- Mutant | -10/Materials Mutant | -10/Mines Subdweller-Mutant | -10/Subcaves Mutant | -8/Materials Mutant | -8/Storage Hauler-Mutant | -7/Factory Hauler-Mutant | -7/Lower Caves Hauler-Mutant | -7/Lower Caves Hauler-Mutant | -7/Zion Hauler-Mutant | -7/Deep Caves Hauler-Mutant | -6/Proximity Caves Hauler-Mutant | -6/Factory Hauler-Mutant | -6/Lower Caves Hauler-Mutant | -6/Lower Caves Hauler-Mutant | -6/Data Miner Hauler-Mutant | -5/Proximity Caves Hauler-Mutant | -5/Factory Hauler-Mutant | -5/Extension Scavenger-Mutant | -5/Cetus Scavenger-Mutant | -5/Archives Scavenger-Mutant | -5/Hub_04(d) Scavenger-Mutant | -4/Factory Scavenger-Mutant | -4/Upper Caves Scavenger-Mutant | -4/Upper Caves Hauler-Mutant | -4/Warlord Hauler-Mutant | -3/Proximity Caves Scavenger-Mutant | -3/Research Scavenger-Mutant | -3/Quarantine Hauler-Mutant | -2/Research Hauler-Mutant | -2/Testing Alien-Mutant | -2/Section 7 Alien-Tank | -1/Access Alien-Executioner | -1/Command Alien-Executioner | -1/Access_0 Resources | -11 -10 -10 -10 -8 -8 -7 -7 -7 -7 -7 -6 -6 -6 -6 -6 -5 -5 -5 -5 -5 -5 -4 -4 -4 -4 -3 -3 -3 -2 -2 -2 -1 -1 -1 ----------- Run | Jun Mat Min Sub Mat Sto Fac Low Low Zio Dee Pro Fac Low Low Dat Pro Fac Ext Cet Arc Hub Fac Upp Upp War Pro Res Qua Res Tes Sec Acc Com Ac0 Matter Collected 13118 | 210 80 . 184 678 1171 620 405 32 64 385 269 648 169 183 377 382 268 164 804 336 359 987 210 209 330 153 170 355 382 161 594 784 995 . Remotely 1116 | . . . . . . . . . . . . . . . . . . . . . . . . . . . . . 55 87 290 285 399 . Salvage Created 23124 | 159 291 34 320 1038 1640 851 337 . . 290 252 734 188 85 377 473 538 655 1150 441 1211 1318 187 481 . 314 828 755 492 535 1061 3763 2326 . Parts 1038 | 13 11 5 23 61 73 48 14 . . 41 7 29 10 2 16 19 27 31 44 19 56 82 7 20 . 18 35 41 16 30 51 110 79 . Haulers Intercepted 19 | . 1 . . 4 6 1 . . . . . 2 . . . . . . . . . 2 . . . . . 1 1 . . 1 . . Recyclers Shooed 6 | . . . . . . . . . . . . 1 . . . . . 2 . . . 3 . . . . . . . . . . . . Parts Field Recycled . | . . . . . . . . . . . . . . . . . . . . . . . . . . . . . . . . . . . Retrieved Matter . | . . . . . . . . . . . . . . . . . . . . . . . . . . . . . . . . . . . Parts Self-Destructed 93 | . . . 10 . . . 11 . . . 7 . 7 1 . 15 . . . . . . 4 20 . 18 . . . . . . . . Prevented 3 | . . . . . . . . . . . . . . . . . . . . . . . 2 1 . . . . . . . . . . Kills | -11 -10 -10 -10 -8 -8 -7 -7 -7 -7 -7 -6 -6 -6 -6 -6 -5 -5 -5 -5 -5 -5 -4 -4 -4 -4 -3 -3 -3 -2 -2 -2 -1 -1 -1 ------- Run | Jun Mat Min Sub Mat Sto Fac Low Low Zio Dee Pro Fac Low Low Dat Pro Fac Ext Cet Arc Hub Fac Upp Upp War Pro Res Qua Res Tes Sec Acc Com Ac0 Combat Hostiles Destroyed 379 | . 6 3 10 20 26 13 11 . . 3 8 9 8 3 4 7 5 9 28 4 16 29 5 7 . 15 20 11 4 7 13 49 25 1 Melee 12 | . . . . . . . . . . . . . . . 2 . . . . . . 2 . . . . . 6 1 . 1 . . . Guns 176 | . 5 3 5 18 26 9 1 . . 3 3 9 4 1 2 6 4 . 17 4 9 17 2 6 . . 14 . . . 2 . 6 . Cannons 135 | . . . 5 . . . . . . . . . . . . . . 3 4 . 7 9 . . . 15 6 5 3 6 10 44 18 . AOE 47 | . . . . 2 . 4 10 . . . 5 . 4 2 . 1 1 6 7 . . 1 2 1 . . . . . . . . . 1 Classes Destroyed 26 | 2 2 1 1 2 3 2 1 . . 2 1 . 1 . . 1 . . . . . . . . . . . . 1 . 2 2 2 . Worker 13 | . . . . . 2 3 . . . . . . . . . . 3 . . . . 3 . . . . . . . . . 2 . . Builder 12 | . . . . . . 1 . . . . . . . . . . . 3 . . . 1 . . . . . . . . 1 6 . . Tunneler 6 | 5 . . . . . 1 . . . . . . . . . . . . . . . . . . . . . . . . . . . . Hauler 19 | . 1 . . 4 6 1 . . . . . 2 . . . . . . . . . 2 . . . . . 1 1 . . 1 . . Recycler 15 | 1 . . . . 2 3 . . . . . . . . . . 1 2 . . 1 1 . . . . 1 . 1 . . 1 1 . Minesweeper 1 | . . . . . . . . . . . . . . . . 1 . . . . . . . . . . . . . . . . . . Operator 3 | . . . . . . . . . . . . . . . . . . . . 2 . . . . . . . 1 . . . . . . Drone 3 | . . . . . . . . . . . 2 . . . . 1 . . . . . . . . . . . . . . . . . . Watcher 18 | . . . . 1 2 1 . . . . . . . . . . 2 1 2 . 3 1 . . . . 1 1 . 1 . 1 1 . Swarmer 90 | . . 3 2 3 1 3 8 . . . . . 8 . . . . 5 8 . . 18 4 . . 8 8 4 . . . 4 3 . Grunt 109 | . 6 . . 9 9 4 2 . . . 4 5 . 2 . 3 . 2 10 . 11 2 1 5 . 4 7 . 1 1 1 19 1 . Brawler 6 | . . . . . . . 1 . . . . . . 1 . 1 . . 1 . . . . . . . . . . . . 1 1 . Duelist 9 | . . . . . 4 . . . . . . . . . . 1 . . 1 . . . . . . . . . . . . 2 1 . Protector 1 | . . . . . . . . . . . . . . . . . . . . . . . . . . . . . . . . 1 . . Researcher 1 | . . . . . . . . . . . . . . . . . . . . . . . . . . . . . . . 1 . . . Sentry 33 | . . . . 8 11 3 . . . . 1 2 . . . . 1 . . 4 1 . . . . . 1 . . . . . 1 . Hunter 26 | . . . . . 1 . . . . . 1 . . . . 1 2 . . . 1 3 . . . 3 . 2 . . . 9 3 . Programmer 58 | . . . . . . 3 . . . . . 2 . . . . 2 2 . . 3 6 . 2 . . 4 5 2 6 7 7 7 . Heavy 2 | . . . . . . . . . . . . . . . . . . . . . . . . . . . . . . . 1 . 1 . Q-Series 2 | . . . . . . . . . . . . . . . . . . . . . . . . . . . . . . . . 2 . . Behemoth 1 | . . . . . . . . . . . . . . . . . . . . . . . . . . . . . . . . . 1 . Cetus Guard 8 | . . . . . . . . . . . . . . . . . . . 8 . . . . . . . . . . . . . . . M Guard 2 | . . . . . . . . . . . . . . . . . . . . . . . . . . . . . . . . . 2 . Enhanced Grunt 4 | . . . . . . . . . . . . . . . 4 . . . . . . . . . . . . . . . . . . . Tracker 4 | . . . . . . . . . . . . . . . . . . . . . . . . . . . . . . . 2 2 . . Combat Programmer 5 | . . . . . . . . . . . . . . . . . . . . . . . . . . . . . . . 2 2 1 . Executioner 1 | . . . . . . . . . . . . . . . . . . . . . . . . . . . . . 1 . . . . . Subdweller 8 | . . . 8 . . . . . . . . . . . . . . . . . . . . . . . . . . . . . . . Z-Technician 4 | . . . . . . . . . . 4 . . . . . . . . . . . . . . . . . . . . . . . . Z-Light 2 | . . . . . . . . . . 2 . . . . . . . . . . . . . . . . . . . . . . . . Decomposer 2 | . . . . . . . . . . . . . 2 . . . . . . . . . . . . . . . . . . . . . Tinkerer 1 | . . . . . . . . . . . . . 1 . . . . . . . . . . . . . . . . . . . . . Troll 1 | . . . . . . . . . . . . . . . . . . . . . . . . . . . . . . . . . 1 . Best Kill Streak 26 | 4 2 3 2 3 6 5 4 . . 4 4 4 8 3 1 3 3 6 8 2 6 7 4 3 . 4 16 4 1 2 3 26 5 1 Combat Bots Only 20 | . 2 3 2 3 4 3 4 . . 2 4 4 8 3 1 3 2 5 8 1 6 7 4 3 . 4 14 4 1 2 3 20 5 1 Max Kills in Single Turn 5 | 1 1 1 1 1 1 3 4 . . 1 2 1 2 1 1 2 1 5 3 1 1 2 2 1 . 1 1 1 1 1 1 3 2 1 Gunslinging 1 | . . . . . . . . . . . . . . . . 1 . . 1 . . 1 . . . . . . . . . . . . Exploded 5 | . . . . 1 . 2 4 . . . 2 . 2 1 . 1 1 5 2 . . 1 2 1 . . . . . . . . . 1 Melee 1 | . . . . . . . . . . . . . . . 1 . . . . . . 1 . . . . . 1 1 . 1 . . . Uniques/NPCs Destroyed 5 | . . . . . . . . . . 1 . . . . . . . . . . . . . . . . . . . . . . 3 1 Z-Imprinter (-7/Deep Caves) Warlord (-1/Command) MAIN.C Shell (-1/Command) MAIN.C (-1/Command) Architect (-1/Access_0) Combat | -11 -10 -10 -10 -8 -8 -7 -7 -7 -7 -7 -6 -6 -6 -6 -6 -5 -5 -5 -5 -5 -5 -4 -4 -4 -4 -3 -3 -3 -2 -2 -2 -1 -1 -1 -------- Run | Jun Mat Min Sub Mat Sto Fac Low Low Zio Dee Pro Fac Low Low Dat Pro Fac Ext Cet Arc Hub Fac Upp Upp War Pro Res Qua Res Tes Sec Acc Com Ac0 Damage Taken 44081 | . 220 101 825 628 1775 690 214 . . 736 626 367 351 39 2378 493 535 1032 3767 609 2567 3756 292 953 35 744 1317 1222 833 868 3530 5656 5471 1451 Core 3668 | . 78 31 118 44 274 66 . . . 207 98 70 22 . 294 101 31 204 540 29 110 318 57 55 23 22 101 216 34 23 222 100 164 16 Absorbed by Shields 12655 | . . . . 164 156 . . . . . 53 139 134 14 295 . . . . . . 76 . . 33 711 1241 638 501 398 2427 4052 1021 602 Reduced by Siege Mode 1540 | . . . . . . . . . . . . . . . . . . . 201 6 130 31 . . . 24 57 . . 12 127 388 364 200 Redirected to Shielding 239 | . . . . . . . . . . . . . . . 82 54 41 . . . . . . . . . . . . . . 19 43 . Ignored by Resistances 707 | . . . . . . . . . . . . 37 . . . . . . . . . . . . . . . . . . . . . 670 Regen/Repaired (Parts) 6668 | . . . . 176 49 . . . . . . 326 . . . . 360 . . . . 142 . . 499 . . 282 255 221 667 1589 2102 . Core Remaining (%) 49 | 100 . . 9 . 42 . . . . . 47 . . . . 42 . . . . 8 . . . . 58 . 72 . . 64 . . . Volleys Fired 1536 | 9 29 6 43 76 101 35 10 . . 28 32 50 12 9 28 16 18 28 63 32 73 100 17 34 10 41 123 49 28 74 110 114 135 3 Largest 6 | 2 2 2 2 2 2 2 2 . . 2 2 2 2 2 2 2 2 2 2 2 2 2 2 2 1 2 1 1 2 2 2 4 6 5 Hottest 585 | 100 100 100 110 100 40 40 72 . . 50 50 50 56 56 56 56 56 196 480 118 480 480 240 480 240 100 90 300 300 240 240 480 585 480 Shots Fired 2648 | 18 43 12 74 140 199 66 17 . . 56 58 97 21 13 57 29 34 55 121 65 134 186 27 55 10 64 123 49 34 86 121 344 225 15 Gun 1469 | 18 38 12 50 129 199 62 10 . . 56 52 97 18 8 57 25 32 . 85 53 89 128 27 55 8 . 53 . . . 26 . 76 6 Cannon 1106 | . . . 14 . . . . . . . . . . . . . . 54 21 12 45 58 . . 2 64 70 49 34 86 95 344 149 9 Launcher 50 | . . . . 3 . 4 7 . . . 6 . 3 5 . 4 2 1 15 . . . . . . . . . . . . . . . Special 23 | . 5 . 10 8 . . . . . . . . . . . . . . . . . . . . . . . . . . . . . . Kinetic 1112 | . . . 25 124 199 62 10 . . 56 52 97 18 8 57 25 32 . 69 53 62 58 . . . . . . . . 26 35 41 3 Thermal 1311 | 18 43 12 49 13 . . . . . . . . . . . . . 54 37 12 72 127 11 45 10 18 67 49 34 86 95 309 138 12 Explosive 50 | . . . . 3 . 4 7 . . . 6 . 3 5 . 4 2 1 15 . . . . . . . . . . . . . . . Electromagnetic 27 | . . . . . . . . . . . . . . . . . . . . . . 1 16 10 . . . . . . . . . . Entropic 148 | . . . . . . . . . . . . . . . . . . . . . . . . . . 46 56 . . . . . 46 . Robot Hit Streak 67 | 6 20 6 20 15 32 36 4 . . 7 10 20 8 13 67 25 15 26 29 22 22 20 11 17 10 16 29 30 11 7 21 38 37 35 Robot Miss Streak 6 | 1 1 2 3 3 3 3 4 . . 4 2 3 2 . . 1 1 1 2 2 3 5 2 2 . 1 4 2 2 3 3 6 2 2 Penetration Max 1 | . . . . . . . . . . . . . . . . . . . 1 1 . . . . . . . . . . . . . . Secondary Targets 22 | . . 1 . . 5 1 . . . . . . 2 . . 1 . . 5 . 2 4 . 1 . . . . . . . . . . Max Gunslinging Chain 1 | . . 1 . . 1 1 . . . . . . 1 . . 1 . . 1 . 1 1 . 1 . . . . . . . . . . Capacitor 168 | . . . . . . . . . . . . . . . . . . . . . . . . . . . 119 49 . . . . . . Shots Hit Robots 1783 | 11 32 9 47 86 150 48 9 . . 41 37 83 14 10 91 32 32 26 99 34 98 128 16 32 2 34 76 28 22 20 71 204 152 9 Core Hits 818 | 7 12 3 15 41 59 35 15 . . 14 19 27 12 9 23 25 18 17 72 19 37 55 10 14 1 16 33 15 4 6 28 94 62 1 Critical Kills 20 | . . . . . . . . . . . 1 1 . . . . 2 . 3 3 . . . . . . . 1 . 2 1 6 . . Critical Parts Destroyed 15 | . . . . . . 3 . . . . 1 . . . 1 . . . 6 1 . . . . . . . 1 2 . . . . . Critical Strikes 83 | 1 4 1 2 . . 3 . . . . 2 1 . . 2 1 2 . 9 8 . 7 . . . 14 1 4 2 3 1 11 4 . Burn 7 | 1 4 1 1 . . . . . . . . . . . . . . . . . . . . . . . . . . . . . . . Meltdown 9 | . . . . . . . . . . . . . . . . . . . . . . . . . . . . . . 2 1 6 . . Destroy 28 | . . . 1 . . . . . . . 2 1 . . 1 . 2 . 9 8 . . . . . . . 2 2 . . . . . Blast 11 | . . . . . . . . . . . . . . . . . . . . . . 6 . . . . . . . . . 5 . . Smash 3 | . . . . . . 3 . . . . . . . . . . . . . . . . . . . . . . . . . . . . Sever 3 | . . . . . . . . . . . . . . . . . . . . . . . . . . . . 2 . 1 . . . . Impale 3 | . . . . . . . . . . . . . . . 1 1 . . . . . 1 . . . . . . . . . . . . Sunder 19 | . . . . . . . . . . . . . . . . . . . . . . . . . . 14 1 . . . . . 4 . Melee Attacks 251 | . . . . . 11 19 3 8 17 14 1 3 2 1 67 8 9 1 . . 3 10 . . 23 . 6 34 5 2 2 2 . . Impact 64 | . . . . . 11 19 3 2 16 9 1 3 . . . . . . . . . . . . . . . . . . . . . . Slashing 73 | . . . . . . . . . . . . . . . . . . . . . . . . . 23 . 6 34 4 2 2 2 . . Piercing 113 | . . . . . . . . 6 1 5 . . 2 1 67 8 9 1 . . 3 10 . . . . . . . . . . . . Sneak Attacks 24 | . . . . . . 3 . . . 5 . 2 2 . 1 2 2 1 . . . . . . . . 2 . 3 . . 1 . . Combat Hostiles . | . . . . . . . . . . . . . . . . . . . . . . . . . . . . . . . . . . . Follow-up Attacks 6 | . . . . . . . . . . . . . . . 6 . . . . . . . . . . . . . . . . . . . Damage Inflicted 86845 | 146 410 112 938 1888 3142 1797 1207 . . 928 975 1595 800 539 2128 1081 956 1907 4288 1251 2975 4706 348 1408 76 2397 3574 1913 1607 1052 3040 11204 25969 488 Guns 27463 | 146 398 112 609 1605 3035 865 85 . . 624 484 1408 238 133 1079 375 522 . 1949 1113 1805 3211 258 1317 . . 2501 . . . 917 . 2523 151 Cannons 47840 | . . . 329 . . . . . . . . . . . . . . 1095 679 138 1123 1399 . . 76 2397 893 726 1198 1000 2048 10956 23446 337 Explosions 6325 | . . . . 274 77 554 873 . . . 491 . 433 406 . 382 237 757 1660 . . . 90 91 . . . . . . . . . . Melee 5046 | . . . . . . 378 249 . . 304 . 187 129 . 1049 324 197 55 . . . 89 . . . . 180 1187 409 52 75 182 . . Ramming 171 | . 12 . . 9 30 . . . . . . . . . . . . . . . 47 7 . . . . . . . . . 66 . . Kinetic 20322 | . . . 343 1539 3035 865 85 . . 624 484 1408 238 133 1079 375 522 . 1416 1113 898 1399 . . . . . . . . 917 2047 1668 134 Thermal 29347 | 146 398 112 595 66 . . . . . . . . . . . . . 1624 1212 138 2030 3211 145 1316 76 . 672 726 1198 1000 2048 8909 3371 354 Explosive 5615 | . . . . 274 77 554 873 . . . 491 . 433 406 . 382 237 228 1660 . . . . . . . . . . . . . . . Electromagnetic 295 | . . . . . . . . . . . . . . . . . . . . . . . 203 92 . . . . . . . . . . Impact 814 | . . . . . . 378 249 . . . . 187 . . . . . . . . . . . . . . . . . . . . . . Slashing 2085 | . . . . . . . . . . . . . . . . . . . . . . . . . . . 180 1187 409 52 75 182 . . Piercing 2147 | . . . . . . . . . . 304 . . 129 . 1049 324 197 55 . . . 89 . . . . . . . . . . . . Entropic 26049 | . . . . . . . . . . . . . . . . . . . . . . . . . . 2397 2722 . . . . . 20930 . Highest Corruption 39 | . . . . . . 4 3 . . . . 2 2 2 2 2 . 4 4 4 3 9 5 5 1 . 6 19 1 3 39 7 25 . Average Corruption 6 | . . . . . . 3 2 . . . . 1 2 2 2 2 . 2 4 3 2 6 5 1 1 . 4 11 1 1 18 3 15 . Corruption Purged 48 | . . . . . . 1 3 . . . . . . . . . . . . 4 3 7 . 5 . . . . . . . . 25 . Corruption Blocked 33 | . . . . . . . . . . . . . . . . . . . . . . . . . . . . . 33 . . . . . Effects 432 | . . . . . . 32 . . . . . 5 7 12 6 11 . 6 18 8 3 42 19 7 . . 11 38 6 17 73 18 93 . Message Errors 96 | . . . . . . 8 . . . . . . 1 4 2 1 . 1 3 . 1 5 9 2 . . 3 11 2 3 15 4 21 . Matter Fused 107 | . . . . . . 13 . . . . . 3 1 3 . 2 . 1 3 5 . 12 3 2 . . 3 11 1 6 15 4 19 . Heat Flow Errors 54 | . . . . . . 1 . . . . . 1 . 2 . 2 . 1 6 . 1 6 2 1 . . 3 3 . . 12 3 10 . Energy Discharges 44 | . . . . . . 5 . . . . . . 2 . 1 3 . 1 2 2 . 6 1 . . . . . . 1 5 1 14 . Parts Rejected 5 | . . . . . . 1 . . . . . . . . 1 . . . . . . . . . . . . 1 . . 1 . 1 . Parts Fused 5 | . . . . . . . . . . . . . . . . . . . . . . 1 . . . . 1 1 . . . 2 . . Data Loss (minor) 47 | . . . . . . 1 . . . . . . 1 2 . . . . 4 . 1 3 2 1 . . 1 6 3 3 9 2 8 . Data Loss (major) 24 | . . . . . . . . . . . . 1 2 1 1 2 . 2 . . . 2 . . . . . 2 . 1 3 . 7 . Misfires 16 | . . . . . . 1 . . . . . . . . 1 1 . . . 1 . 2 1 1 . . . . . 3 2 1 2 . Alerts 12 | . . . . . . 1 . . . . . . . . . . . . . . . 3 . . . . . 3 . . 2 1 2 . Misdirections 3 | . . . . . . . . . . . . . . . . . . . . . . . . . . . . . . . . . 3 . Weapon Failures 19 | . . . . . . 1 . . . . . . . . . . . . . . . 2 1 . . . . . . . 9 . 6 . Overload Shots 53 | . . . . . . . . . . . . . . . . . . . 4 . 12 22 1 12 2 . . . . . . . . . Effects 1 | . . . . . . . . . . . . . . . . . . . . . . 1 . . . . . . . . . . . . Energy Bleed 1 | . . . . . . . . . . . . . . . . . . . . . . 1 . . . . . . . . . . . . Overflow Damage 4817 | . . . . 10 . 359 119 . . 56 20 89 60 . 18 136 9 127 . 13 78 62 . . . 154 52 346 477 26 265 462 1874 5 Projectiles 3553 | . . . . . . . . . . . . . . . . . . 85 . 13 78 59 . . . 154 15 133 406 26 265 440 1874 5 Explosions 144 | . . . . 10 . 41 9 . . . 20 . 26 . . 12 9 17 . . . . . . . . . . . . . . . . Melee 1120 | . . . . . . 318 110 . . 56 . 89 34 . 18 124 . 25 . . . 3 . . . . 37 213 71 . . 22 . . Knockbacks 40 | . . . . . . 1 . . . . . . . . . . . . . . . 20 . . . . . . . . . 16 3 . Impact 1 | . . . . . . 1 . . . . . . . . . . . . . . . . . . . . . . . . . . . . Kinetic 30 | . . . . . . . . . . . . . . . . . . . . . . 17 . . . . . . . . . 11 2 . Secondary 9 | . . . . . . . . . . . . . . . . . . . . . . 3 . . . . . . . . . 5 1 . Self-Inflicted Damage 354 | . . . . 72 . . . . . . . . . . . 13 . 176 10 . . . 20 63 . . . . . . . . . . Shots 10 | . . . . 1 . . . . . . . . . . . 2 . 4 1 . . . 1 1 . . . . . . . . . . Rammed 12 | . 2 . . 1 3 . . . . . . . . . . . . . . . 2 2 . . . . . . . . . 2 . . Targets Rammed 15 | . 2 . . 1 6 . . . . . . . . . . . . . . . 2 2 . . . . . . . . . 2 . . Kicked . | . . . . . . . . . . . . . . . . . . . . . . . . . . . . . . . . . . . Crushed 3 | . . . . . 3 . . . . . . . . . . . . . . . . . . . . . . . . . . . . . Highest Temperature 503 | 159 231 234 269 172 176 133 187 . . 226 320 118 . 251 248 194 . 365 196 196 194 408 136 360 136 148 193 157 503 282 324 198 198 178 Average Temperature 99 | 78 90 118 135 31 59 30 70 . . 133 133 75 . 121 130 94 . 97 101 108 83 97 77 157 62 42 72 72 121 78 107 144 121 146 Received Heat Transfer 4964 | . 120 . 423 268 476 204 72 . . 225 90 112 12 9 . 81 . 135 480 63 829 81 69 168 4 58 114 98 56 102 195 324 96 . Effects 17 | . . . . . . . . . . . . . . . . . . . . . . . . 1 . . . . 5 . 11 . . . Shutdowns 3 | . . . . . . . . . . . . . . . . . . . . . . . . . . . . . 3 . . . . . Energy Bleed 3 | . . . . . . . . . . . . . . . . . . . . . . . . 1 . . . . . . 2 . . . Interference 11 | . . . . . . . . . . . . . . . . . . . . . . . . . . . . . 2 . 9 . . . Siege Activations 51 | . . . . . . . . . . . . . . . . . . . 1 3 4 1 . . . 7 4 . 2 3 5 10 10 1 Total Turns 1072 | . . . . . . . . . . . . . . . . . . . 56 39 125 24 . . . 70 81 . 9 80 87 277 218 6 Longest Duration 91 | . . . . . . . . . . . . . . . . . . . 56 25 53 24 . . . 20 67 . 7 44 28 91 65 6 Robots Corrupted 1 | . . . . . . . . . . . . . . . . . . . . . . . 1 . . . . . . . . . . . Combat Hostiles 1 | . . . . . . . . . . . . . . . . . . . . . . . 1 . . . . . . . . . . . Parts Fried 9 | . . . . . . 3 . . . . . 1 . . . . . . . . . . 2 . . . . . . . . 3 . . Impact Corruptions 20 | . . . . . . 8 7 . . . . 2 . . . . . . . . . . . . . . . . . . . 3 . . Robots Melted 11 | . 1 . . . . . . . . . . . . . . . . . . . . . . . . . . . . 2 1 6 1 . Combat Hostiles 8 | . 1 . . . . . . . . . . . . . . . . . . . . . . . . . . . . 1 . 5 1 . Parts Melted 71 | . 3 . 2 . . . . . . . . . . . . . . 6 . . 3 3 1 4 . . 7 1 1 8 8 17 7 . Heat Transferred 28708 | 518 1480 407 1222 75 . . . . . . . . . . . . . 1400 1351 148 2067 3525 174 1118 100 . 1050 500 720 740 1591 7581 2866 75 Parts Sabotaged . | . . . . . . . . . . . . . . . . . . . . . . . . . . . . . . . . . . . Parts Stolen . | . . . . . . . . . . . . . . . . . . . . . . . . . . . . . . . . . . . Parts Stripped . | . . . . . . . . . . . . . . . . . . . . . . . . . . . . . . . . . . . Power Chain Reactions 2 | . . . . . . . . . . . . . . . . . . . . . . . 1 1 . . . . . . . . . . Missiles Intercepted . | . . . . . . . . . . . . . . . . . . . . . . . . . . . . . . . . . . . Alert | -11 -10 -10 -10 -8 -8 -7 -7 -7 -7 -7 -6 -6 -6 -6 -6 -5 -5 -5 -5 -5 -5 -4 -4 -4 -4 -3 -3 -3 -2 -2 -2 -1 -1 -1 ------- Run | Jun Mat Min Sub Mat Sto Fac Low Low Zio Dee Pro Fac Low Low Dat Pro Fac Ext Cet Arc Hub Fac Upp Upp War Pro Res Qua Res Tes Sec Acc Com Ac0 Peak Influence 2220 | 30 226 131 . 561 703 417 . . . . . 291 . . . . 289 280 629 383 288 575 . . . . 591 451 288 315 931 2220 1516 . Initial 1420 | . 19 46 . 52 235 317 . . . . . . . . . . 156 . 72 205 63 140 . . . . 47 261 76 162 86 558 1420 . Average 363 | 16 137 127 . 242 464 291 . . . . . 113 . . . . 156 107 298 275 114 301 . . . . 239 279 119 173 377 1287 1461 . Maximum Alert Level 5 | . 1 . . 2 3 2 . . . . . 1 . . . . 1 1 2 1 1 2 . . . . 2 2 1 1 3 5 5 . Low Security (%) 33 | 100 63 100 . 55 . 10 . . . . . 82 . . . . 59 65 26 28 70 45 . . . . 62 12 82 65 27 . . . Level 1 27 | . 36 . . 20 42 84 . . . . . 17 . . . . 40 34 43 71 29 12 . . . . 10 78 17 34 24 . . . Level 2 14 | . . . . 24 57 5 . . . . . . . . . . . . 29 . . 42 . . . . 27 9 . . 36 15 . . Level 3 2 | . . . . . . . . . . . . . . . . . . . . . . . . . . . . . . . 11 35 . . Level 4 4 | . . . . . . . . . . . . . . . . . . . . . . . . . . . . . . . . 11 21 . Level 5 17 | . . . . . . . . . . . . . . . . . . . . . . . . . . . . . . . . 36 78 . High Security . | . . . . . . . . . . . . . . . . . . . . . . . . . . . . . . . . . . . Max Security . | . . . . . . . . . . . . . . . . . . . . . . . . . . . . . . . . . . . Squads Dispatched 82 | . 3 . . 1 3 6 . . . . . 2 . . . . 3 . . . 6 6 . . . . 3 3 1 7 16 17 5 . Investigation 8 | . 1 . . 1 2 2 . . . . . . . . . . . . . . . . . . . . . . . . 1 1 . . Extermination 28 | . . . . . . 3 . . . . . 1 . . . . 1 . . . 2 3 . . . . 1 3 . 4 4 4 2 . Reinforcement 25 | . 2 . . . . 1 . . . . . 1 . . . . 2 . . . 4 2 . . . . . . 1 2 8 2 . . Assault 15 | . . . . . 1 . . . . . . . . . . . . . . . . 1 . . . . 2 . . 1 . 7 3 . Garrison . | . . . . . . . . . . . . . . . . . . . . . . . . . . . . . . . . . . . Intercept 6 | . . . . . . . . . . . . . . . . . . . . . . . . . . . . . . . 3 3 . . Searches Triggered . | . . . . . . . . . . . . . . . . . . . . . . . . . . . . . . . . . . . Construction Impeded 5 | . . . . . . . . . . . . . . . . . . . . . . 1 . . . . . . . 1 1 2 . . Haulers Reinforced 3 | . . . . . . . . . . . . 1 . . . . . . . . 1 . . . . . . . 1 . . . . . Active Scanning Responses . | . . . . . . . . . . . . . . . . . . . . . . . . . . . . . . . . . . . Cargo Convoy Interrupts 1 | . . . . . . 1 . . . . . . . . . . . . . . . . . . . . . . . . . . . . Stealth | -11 -10 -10 -10 -8 -8 -7 -7 -7 -7 -7 -6 -6 -6 -6 -6 -5 -5 -5 -5 -5 -5 -4 -4 -4 -4 -3 -3 -3 -2 -2 -2 -1 -1 -1 --------- Run | Jun Mat Min Sub Mat Sto Fac Low Low Zio Dee Pro Fac Low Low Dat Pro Fac Ext Cet Arc Hub Fac Upp Upp War Pro Res Qua Res Tes Sec Acc Com Ac0 Distress Signals 39 | . 1 . . 2 1 1 . . . . . . . . . . . 1 2 . . . . . . . . 2 5 . 3 1 20 . Communications Jammed 166 | . . . . 45 . . . . . . . 2 . . . . 7 . . . . 6 . . . . 11 31 . . 9 55 . . Distress Signals 155 | . . . . 45 . . . . . . . 1 . . . . 7 . . . . 6 . . . . 11 30 . . . 55 . . Times Spotted 706 | . 12 3 16 30 37 18 9 . . 6 7 12 14 4 4 7 14 14 38 19 29 54 5 7 23 16 30 27 17 28 62 96 43 5 Peak Tracking Total 11 | . 5 3 4 7 5 3 4 . . 3 4 4 5 3 1 3 5 5 8 1 6 9 2 2 9 4 10 6 6 4 6 11 11 4 Tactical Retreats 38 | . 1 . 1 . 3 . . . . . . 1 1 1 . . . 1 13 . 3 2 . . . . . . 1 1 . 4 5 . Traps | -11 -10 -10 -10 -8 -8 -7 -7 -7 -7 -7 -6 -6 -6 -6 -6 -5 -5 -5 -5 -5 -5 -4 -4 -4 -4 -3 -3 -3 -2 -2 -2 -1 -1 -1 ------- Run | Jun Mat Min Sub Mat Sto Fac Low Low Zio Dee Pro Fac Low Low Dat Pro Fac Ext Cet Arc Hub Fac Upp Upp War Pro Res Qua Res Tes Sec Acc Com Ac0 Traps Triggered 21 | . . . . 1 2 2 . . . . . . . . . . . 4 . . 3 1 . . . . . 2 . . 3 1 2 . Indirectly . | . . . . . . . . . . . . . . . . . . . . . . . . . . . . . . . . . . . Trap Hack Attempts . | . . . . . . . . . . . . . . . . . . . . . . . . . . . . . . . . . . . Triggered . | . . . . . . . . . . . . . . . . . . . . . . . . . . . . . . . . . . . Disarmed . | . . . . . . . . . . . . . . . . . . . . . . . . . . . . . . . . . . . Reprogrammed . | . . . . . . . . . . . . . . . . . . . . . . . . . . . . . . . . . . . Reused . | . . . . . . . . . . . . . . . . . . . . . . . . . . . . . . . . . . . Traps Extracted . | . . . . . . . . . . . . . . . . . . . . . . . . . . . . . . . . . . . Installed . | . . . . . . . . . . . . . . . . . . . . . . . . . . . . . . . . . . . Triggered 13 | . . . . . . 1 . . . . . . . . . 1 . . . . . . . 1 10 . . . . . . . . . Most Traps Carried 5 | . . . . . . . . . . . . . . . . 5 5 5 5 5 5 5 5 5 . . . . . . . . . . Machines | -11 -10 -10 -10 -8 -8 -7 -7 -7 -7 -7 -6 -6 -6 -6 -6 -5 -5 -5 -5 -5 -5 -4 -4 -4 -4 -3 -3 -3 -2 -2 -2 -1 -1 -1 ---------- Run | Jun Mat Min Sub Mat Sto Fac Low Low Zio Dee Pro Fac Low Low Dat Pro Fac Ext Cet Arc Hub Fac Upp Upp War Pro Res Qua Res Tes Sec Acc Com Ac0 Machines Disabled 67 | . . . . 6 5 1 . . . 1 . . . . 1 . . 5 1 4 3 6 . . . . 2 8 . 7 7 3 7 . Max in Single Turn 3 | . . . . 1 1 1 . . . 1 . . . . 1 . . 3 1 1 1 1 . . . . 1 2 . 1 1 1 2 . Garrison Access 4 | . . . . 1 . . . . . . . . . . . . . . . . . . . . . . 1 . 1 1 . . . . Phase Generator 1 | . . . . . . . . . . . . . . . . . . . . . . . . . . . . . . . . . 1 . Energy Cycler 5 | . . . . . . . . . . . . . . . . . . 5 . . . . . . . . . . . . . . . . Machines Repaired . | . . . . . . . . . . . . . . . . . . . . . . . . . . . . . . . . . . . Machines Sabotaged . | . . . . . . . . . . . . . . . . . . . . . . . . . . . . . . . . . . . Overloaded Fab Kills . | . . . . . . . . . . . . . . . . . . . . . . . . . . . . . . . . . . . Hacking | -11 -10 -10 -10 -8 -8 -7 -7 -7 -7 -7 -6 -6 -6 -6 -6 -5 -5 -5 -5 -5 -5 -4 -4 -4 -4 -3 -3 -3 -2 -2 -2 -1 -1 -1 --------- Run | Jun Mat Min Sub Mat Sto Fac Low Low Zio Dee Pro Fac Low Low Dat Pro Fac Ext Cet Arc Hub Fac Upp Upp War Pro Res Qua Res Tes Sec Acc Com Ac0 Machines Accessed 103 | . 3 . 1 9 12 8 . . . . . 3 . . 4 . 7 4 . . 7 9 . . 1 . 6 7 1 9 6 2 4 . Terminals 67 | . 2 . . 6 9 2 . . . . . 1 . . . . 4 4 . . 7 6 . . . . 4 4 1 7 4 2 4 . Fabricators 6 | . . . . . . 4 . . . . . 1 . . . . . . . . . 1 . . . . . . . . . . . . Repair Stations 9 | . . . . 1 1 . . . . . . 1 . . . . 2 . . . . 1 . . . . 1 1 . 1 . . . . Recycling Units 4 | . 1 . . 1 2 . . . . . . . . . . . . . . . . . . . . . . . . . . . . . Scanalyzers 3 | . . . . . . . . . . . . . . . . . . . . . . 1 . . . . . 1 . . 1 . . . Garrison Access 8 | . . . . 1 . 2 . . . . . . . . . . 1 . . . . . . . . . 1 1 . 1 1 . . . Total Hacks 247 | . 6 . 2 26 28 20 . . . . . 11 . . 29 . 19 13 . . 10 22 . . 1 . 9 15 1 17 9 3 6 . Successful 130 | . 2 . 2 16 14 9 . . . . . 5 . . 29 . 10 5 . . 2 15 . . 1 . 3 6 . 4 3 2 2 . Failed 117 | . 4 . . 10 14 11 . . . . . 6 . . . . 9 8 . . 8 7 . . . . 6 9 1 13 6 1 4 . Catastrophic 36 | . . . . 3 1 3 . . . . . 2 . . . . 4 3 . . 3 2 . . . . 3 4 1 4 1 1 1 . Database Lockouts . | . . . . . . . . . . . . . . . . . . . . . . . . . . . . . . . . . . . Manual 72 | . 5 . . 12 6 12 . . . . . 3 . . . . 3 2 . . 4 13 . . 1 . 2 5 . 4 . . . . Terminals 140 | . 5 . . 17 20 4 . . . . . 1 . . . . 10 13 . . 10 14 . . . . 7 7 1 15 7 3 6 . Fabricators 18 | . . . . . . 13 . . . . . 3 . . . . . . . . . 2 . . . . . . . . . . . . Repair Stations 33 | . . . . 6 4 . . . . . . 7 . . . . 8 . . . . 4 . . . . 1 2 . 1 . . . . Recycling Units 6 | . 1 . . 1 4 . . . . . . . . . . . . . . . . . . . . . . . . . . . . . Scanalyzers 8 | . . . . . . . . . . . . . . . . . . . . . . 2 . . . . . 5 . . 1 . . . Garrison Access 10 | . . . . 2 . 3 . . . . . . . . . . 1 . . . . . . . . . 1 1 . 1 1 . . . Terminal Hacks 82 | . 1 . 2 8 10 2 . . . . . . . . 29 . 4 4 . . 2 5 . . 1 . 3 1 . 4 2 2 2 . Record 13 | . . . 2 . . . . . . . . . . . 11 . . . . . . . . . . . . . . . . . . . Part Schematic 11 | . . . . 1 . . . . . . . . . . 9 . . . . . . 1 . . . . . . . . . . . . Robot Schematic 6 | . . . . . . . . . . . . . . . 6 . . . . . . . . . . . . . . . . . . . Robot Analysis 2 | . . . . 2 . . . . . . . . . . . . . . . . . . . . . . . . . . . . . . Prototype ID Bank 4 | . . . . . 1 . . . . . . . . . 3 . . . . . . . . . . . . . . . . . . . Open Door 9 | . . . . . 3 . . . . . . . . . . . 1 . . . . . . . 1 . . . . . 2 1 1 . Branch Access Points 5 | . . . . 1 . 1 . . . . . . . . . . . . . . . 1 . . . . 1 . . . . 1 . . Alert Level 1 | . . . . . . . . . . . . . . . . . . . . . 1 . . . . . . . . . . . . . Unreport Threat 10 | . . . . . 1 1 . . . . . . . . . . 2 1 . . . 2 . . . . . 1 . 2 . . . . Locate Traps 6 | . . . . 1 1 . . . . . . . . . . . . 2 . . . 1 . . . . 1 . . . . . . . Transport Status 1 | . . . . . 1 . . . . . . . . . . . . . . . . . . . . . . . . . . . . . Hauler Manifests 2 | . . . . 1 1 . . . . . . . . . . . . . . . . . . . . . . . . . . . . . Zone Layout 11 | . 1 . . 2 2 . . . . . . . . . . . 1 1 . . 1 . . . . . 1 . . 2 . . . . Disengage Seal 1 | . . . . . . . . . . . . . . . . . . . . . . . . . . . . . . . . . 1 . Fabricator Hacks 4 | . . . . . . 4 . . . . . . . . . . . . . . . . . . . . . . . . . . . . Network Status 1 | . . . . . . 1 . . . . . . . . . . . . . . . . . . . . . . . . . . . . Load Schematic 2 | . . . . . . 2 . . . . . . . . . . . . . . . . . . . . . . . . . . . . Build 1 | . . . . . . 1 . . . . . . . . . . . . . . . . . . . . . . . . . . . . Repair Station Hacks 21 | . . . . 4 2 . . . . . . 4 . . . . 6 . . . . 4 . . . . . 1 . . . . . . Scan Component 12 | . . . . 2 1 . . . . . . 2 . . . . 4 . . . . 2 . . . . . 1 . . . . . . Repair 9 | . . . . 2 1 . . . . . . 2 . . . . 2 . . . . 2 . . . . . . . . . . . . Recycling Unit Hacks . | . . . . . . . . . . . . . . . . . . . . . . . . . . . . . . . . . . . Scanalyzer 7 | . . . . . . . . . . . . . . . . . . . . . . 2 . . . . . 4 . . 1 . . . Insert Component 6 | . . . . . . . . . . . . . . . . . . . . . . 1 . . . . . 4 . . 1 . . . Analyze 1 | . . . . . . . . . . . . . . . . . . . . . . 1 . . . . . . . . . . . . Garrison Access Hacks 1 | . . . . 1 . . . . . . . . . . . . . . . . . . . . . . . . . . . . . . Seal Access 1 | . . . . 1 . . . . . . . . . . . . . . . . . . . . . . . . . . . . . . Unauthorized Hacks 15 | . 1 . . 3 2 3 . . . . . 1 . . . . . 1 . . . 4 . . . . . . . . . . . . Terminals 5 | . . . . 2 . . . . . . . . . . . . . 1 . . . 2 . . . . . . . . . . . . Assimilate 5 | . . . . 2 . . . . . . . . . . . . . 1 . . . 2 . . . . . . . . . . . . Fabricators 6 | . . . . . . 3 . . . . . 1 . . . . . . . . . 2 . . . . . . . . . . . . Report 1 | . . . . . . 1 . . . . . . . . . . . . . . . . . . . . . . . . . . . . Liberate 1 | . . . . . . . . . . . . . . . . . . . . . . 1 . . . . . . . . . . . . Haulers 3 | . . . . . . 1 . . . . . 1 . . . . . . . . . 1 . . . . . . . . . . . . Recompile 1 | . . . . . . 1 . . . . . . . . . . . . . . . . . . . . . . . . . . . . Repair Stations . | . . . . . . . . . . . . . . . . . . . . . . . . . . . . . . . . . . . Recycling Units 4 | . 1 . . 1 2 . . . . . . . . . . . . . . . . . . . . . . . . . . . . . Tunnel 4 | . 1 . . 1 2 . . . . . . . . . . . . . . . . . . . . . . . . . . . . . Scanalyzers . | . . . . . . . . . . . . . . . . . . . . . . . . . . . . . . . . . . . Garrison Access . | . . . . . . . . . . . . . . . . . . . . . . . . . . . . . . . . . . . Data Cores Recovered 1 | . . . . . . . . . . . . . . . . . . . . . . . . . . . . 1 . . . . . . Used . | . . . . . . . . . . . . . . . . . . . . . . . . . . . . . . . . . . . Hacking Detections 84 | . 2 . . 7 6 7 . . . . . 3 . . . . 7 4 . . 7 8 . . . . 6 7 1 9 5 2 3 . Full Trace Events 3 | . . . . . . 1 . . . . . . . . . . . . . . . . . . . . . . . . 1 1 . . Feedback Events . | . . . . . . . . . . . . . . . . . . . . . . . . . . . . . . . . . . . Feedback Blocked . | . . . . . . . . . . . . . . . . . . . . . . . . . . . . . . . . . . . Robot Schematics Acquired 11 | . . . . . . . . . 3 . . . . . 6 . . . . . . . . . . . . . . 1 1 . . . Robots Built . | . . . . . . . . . . . . . . . . . . . . . . . . . . . . . . . . . . . Authchips . | . . . . . . . . . . . . . . . . . . . . . . . . . . . . . . . . . . . Time . | . . . . . . . . . . . . . . . . . . . . . . . . . . . . . . . . . . . Total Robot Build Rating . | . . . . . . . . . . . . . . . . . . . . . . . . . . . . . . . . . . . Part Schematics Acquired 35 | . . . . 1 . . . . 16 . . . . . 9 . . . . . . 2 . . . . . . . 4 3 . . . Parts Built 1 | . . . . . . 1 . . . . . . . . . . . . . . . . . . . . . . . . . . . . Authchips 1 | . . . . . . 1 . . . . . . . . . . . . . . . . . . . . . . . . . . . . Time 25 | . . . . . . 25 . . . . . . . . . . . . . . . . . . . . . . . . . . . . Total Part Build Rating 1 | . . . . . . 1 . . . . . . . . . . . . . . . . . . . . . . . . . . . . Parts Repaired 9 | . . . . 2 1 . . . . . . 2 . . . . 2 . . . . 2 . . . . . . . . . . . . Time 402 | . . . . 52 60 . . . . . . 88 . . . . 65 . . . . 137 . . . . . . . . . . . . Parts Recycled . | . . . . . . . . . . . . . . . . . . . . . . . . . . . . . . . . . . . Recycled Matter . | . . . . . . . . . . . . . . . . . . . . . . . . . . . . . . . . . . . Retrieved Matter . | . . . . . . . . . . . . . . . . . . . . . . . . . . . . . . . . . . . Retrieved Components . | . . . . . . . . . . . . . . . . . . . . . . . . . . . . . . . . . . . Parts Scanalyzed 1 | . . . . . . . . . . . . . . . . . . . . . . 1 . . . . . . . . . . . . Part Schematics Acquired 1 | . . . . . . . . . . . . . . . . . . . . . . 1 . . . . . . . . . . . . Parts Damaged . | . . . . . . . . . . . . . . . . . . . . . . . . . . . . . . . . . . . Bothacking | -11 -10 -10 -10 -8 -8 -7 -7 -7 -7 -7 -6 -6 -6 -6 -6 -5 -5 -5 -5 -5 -5 -4 -4 -4 -4 -3 -3 -3 -2 -2 -2 -1 -1 -1 ------------ Run | Jun Mat Min Sub Mat Sto Fac Low Low Zio Dee Pro Fac Low Low Dat Pro Fac Ext Cet Arc Hub Fac Upp Upp War Pro Res Qua Res Tes Sec Acc Com Ac0 Used RIF Installer . | . . . . . . . . . . . . . . . . . . . . . . . . . . . . . . . . . . . Robots Hacked 1 | . . . . . . . . . . . . . . . . . . . . . . . . . . . . . 1 . . . . . Non-combat . | . . . . . . . . . . . . . . . . . . . . . . . . . . . . . . . . . . . Combat 1 | . . . . . . . . . . . . . . . . . . . . . . . . . . . . . 1 . . . . . Robot Hacks Applied 1 | . . . . . . . . . . . . . . . . . . . . . . . . . . . . . 1 . . . . . parse_system 1 | . . . . . . . . . . . . . . . . . . . . . . . . . . . . . 1 . . . . . Relay Couplers Released 7 | . . . . 1 . . . . . . . . . . . . . . . . . 3 . . . . 2 . . 1 . . . . Machine Destruction 4 | . . . . 1 . . . . . . . . . . . . . . . . . . . . . . 2 . . 1 . . . . Programmers 3 | . . . . . . . . . . . . . . . . . . . . . . 3 . . . . . . . . . . . . Fabnet Peak Effective % . | . . . . . . . . . . . . . . . . . . . . . . . . . . . . . . . . . . . Robots Rewired 5 | . . . . . . . . . . . . . . . . . . . . . . . . . 5 . . . . . . . . . Allies Hacked 1 | . . . . . . . . . . . . . . . . . . . . . . 1 . . . . . . . . . . . . Hacks Repelled . | . . . . . . . . . . . . . . . . . . . . . . . . . . . . . . . . . . . Allies | -11 -10 -10 -10 -8 -8 -7 -7 -7 -7 -7 -6 -6 -6 -6 -6 -5 -5 -5 -5 -5 -5 -4 -4 -4 -4 -3 -3 -3 -2 -2 -2 -1 -1 -1 -------- Run | Jun Mat Min Sub Mat Sto Fac Low Low Zio Dee Pro Fac Low Low Dat Pro Fac Ext Cet Arc Hub Fac Upp Upp War Pro Res Qua Res Tes Sec Acc Com Ac0 Total Allies 24 | . . . . 1 . . . . 9 . . . . . . . . 2 . . . 7 . . 5 . . . . . . . . . Largest Group 9 | . . . . 1 . . . . 9 8 . . . . . . . 1 . . . 3 1 . 5 . . . . . . . . . Highest-Rated Group 303 | . . . . 10 . . . . 256 236 . . . . . . . 25 . . . 141 10 . 303 . . . . . . . . . Highest-Rated Ally 68 | . . . . 10 . . . . 51 51 . . . . . . . 25 . . . 54 10 . 68 . . . . . . . . . Total Orders 51 | . . . . 2 . . . . . . . . . . . . . . . . . . . . 5 . . . 6 8 21 9 . . STAY 6 | . . . . 1 . . . . . . . . . . . . . . . . . . . . 5 . . . . . . . . . FOLLOW 1 | . . . . 1 . . . . . . . . . . . . . . . . . . . . . . . . . . . . . . RETURN 44 | . . . . . . . . . . . . . . . . . . . . . . . . . . . . . 6 8 21 9 . . Ally Attacks 238 | . . . . . . . . . . 38 . . . . . . . 4 . . . 32 . . 3 . . . 31 20 74 36 . . Total Damage 21683 | . . . . . . . . . . 626 . . . . . . . 146 . . . 817 . . 90 . . . 3770 3063 9333 3838 . . Kills 84 | . . . . . . . . . . 4 . . . . . . . 1 . . . 7 . . 2 . . . 14 9 29 18 . . Allies Corrupted 1 | . . . . . . . . . . . . . . . . . . . . . . . . . . . . . . . . 1 . . Allies Melted . | . . . . . . . . . . . . . . . . . . . . . . . . . . . . . . . . . . . Intel | -11 -10 -10 -10 -8 -8 -7 -7 -7 -7 -7 -6 -6 -6 -6 -6 -5 -5 -5 -5 -5 -5 -4 -4 -4 -4 -3 -3 -3 -2 -2 -2 -1 -1 -1 ------- Run | Jun Mat Min Sub Mat Sto Fac Low Low Zio Dee Pro Fac Low Low Dat Pro Fac Ext Cet Arc Hub Fac Upp Upp War Pro Res Qua Res Tes Sec Acc Com Ac0 Robot Analysis Total 2 | . . . . 2 . . . . . . . . . . . . . . . . . . . . . . . . . . . . . . Derelict Logs Recovered 12 | . . . 2 . . . . 1 . . 2 . 2 2 . . . . . . . . 3 . . . . . . . . . . . Drone Launches 44 | . . . . . . . . . . . . . . . . . . . . . . . . . . . . . 6 8 20 10 . . Drone Recoveries 43 | . . . . . . . . . . . . . . . . . . . . . . . . . . . . . 6 8 20 9 . . Exploration | -11 -10 -10 -10 -8 -8 -7 -7 -7 -7 -7 -6 -6 -6 -6 -6 -5 -5 -5 -5 -5 -5 -4 -4 -4 -4 -3 -3 -3 -2 -2 -2 -1 -1 -1 ------------- Run | Jun Mat Min Sub Mat Sto Fac Low Low Zio Dee Pro Fac Low Low Dat Pro Fac Ext Cet Arc Hub Fac Upp Upp War Pro Res Qua Res Tes Sec Acc Com Ac0 Turns Passed 42562 | 86 515 188 2780 1435 1836 1517 1660 717 2019 1357 838 645 698 667 761 787 852 830 859 561 1458 2066 849 1123 1325 836 864 1293 1132 1650 1919 1351 5066 22 Spaces Moved 19473 | 24 284 73 1546 611 585 858 1087 476 1339 838 517 276 449 435 332 515 476 469 176 152 474 849 366 411 598 276 272 526 386 569 626 349 2229 24 Core 24 | . . . . . . . . . . . . . . . . . . . . . . . . . . . . . . . . . . 24 Treads 7926 | . 150 73 1546 611 585 57 . . . . . . . . . . . . 56 152 474 236 . . . . . 95 386 569 626 349 1961 . Legs 2753 | 24 134 . . . . . . . . . . . . . . 3 . . 25 . . 213 366 411 598 276 272 431 . . . . . . Wheels 8770 | . . . . . . 801 1087 476 1339 838 517 276 449 435 332 512 476 469 95 . . 400 . . . . . . . . . . 268 . Hover . | . . . . . . . . . . . . . . . . . . . . . . . . . . . . . . . . . . . Flight . | . . . . . . . . . . . . . . . . . . . . . . . . . . . . . . . . . . . Fastest Speed 50 | 120 120 160 160 160 235 115 130 145 130 130 145 130 145 130 130 130 130 145 145 240 240 118 190 188 176 176 178 178 231 155 238 238 146 50 Average Speed 174 | 120 141 160 160 165 237 145 144 145 144 144 145 152 145 144 145 131 140 145 333 248 240 174 190 189 185 237 231 191 235 227 238 238 174 50 Slowest Speed 610 | 120 160 160 160 243 240 235 145 145 145 145 145 190 145 145 175 260 175 145 610 320 240 320 190 190 190 246 246 400 241 238 238 238 410 50 Overloaded Moves . | . . . . . . . . . . . . . . . . . . . . . . . . . . . . . . . . . . . Propulsion Burnouts . | . . . . . . . . . . . . . . . . . . . . . . . . . . . . . . . . . . . Robots Hopped . | . . . . . . . . . . . . . . . . . . . . . . . . . . . . . . . . . . . Cave-ins Triggered 1 | . . . . . . . . . . . . . . . . . . . . . . . . . . . . 1 . . . . . . Teleports 3 | . . . . . . . . . . . . . . . . . . . . . . . . . . . . . . . 2 . 1 . Exploration Rate (%) 52 | 3 56 25 76 62 89 27 92 57 86 78 65 8 61 70 80 67 13 68 62 81 46 23 55 48 82 52 8 70 20 74 41 15 75 6 Regions Visited 34 Branch Regions 25 Pre-discovered Areas 9 | . 1 . . 1 2 . . . 2 . . . 1 1 1 . . . . . . . . . . . . . . . . . . . Known Exits Taken 10 | . . . . 1 . 1 . . . . . 1 . 1 . . 1 . . . . 1 . . . . 1 1 1 . . 1 . . Unknown Exits Taken 24 | 1 1 1 1 . 1 . 1 1 1 1 1 . 1 . 1 1 . 1 1 1 1 . 1 1 1 1 . . . 1 1 . 1 . Scrap Searched 25 | . . . 2 . . . 1 5 3 . 1 . 1 4 . 1 . . . . . . 2 4 . 1 . . . . . . . . Spaces Dug 292 | . 2 . . 7 11 13 15 3 3 2 11 . 14 1 . 2 3 8 . . 14 15 3 4 19 11 22 20 10 36 17 18 8 . Terrain Destroyed 1122 | . 5 . 2 91 25 36 64 3 3 2 52 . 39 32 . 26 19 82 107 11 20 31 8 27 19 29 36 34 32 53 38 88 104 4 Melee 77 | . . . . . 11 13 . 3 3 2 1 . . 1 . 2 3 . . . 2 5 . . 17 . 3 10 1 . . . . . Projectile 487 | . 5 . 2 11 7 1 . . . . 1 . 1 . . . . 22 12 11 18 26 7 14 2 29 33 24 31 53 38 88 47 4 AOE 558 | . . . . 80 7 22 64 . . . 50 . 38 31 . 24 16 60 95 . . . 1 13 . . . . . . . . 57 . Terrain Rammed . | . . . . . . . . . . . . . . . . . . . . . . . . . . . . . . . . . . . Walls Destroyed . | . . . . . . . . . . . . . . . . . . . . . . . . . . . . . . . . . . . Machines Disabled . | . . . . . . . . . . . . . . . . . . . . . . . . . . . . . . . . . . . Actions | -11 -10 -10 -10 -8 -8 -7 -7 -7 -7 -7 -6 -6 -6 -6 -6 -5 -5 -5 -5 -5 -5 -4 -4 -4 -4 -3 -3 -3 -2 -2 -2 -1 -1 -1 --------- Run | Jun Mat Min Sub Mat Sto Fac Low Low Zio Dee Pro Fac Low Low Dat Pro Fac Ext Cet Arc Hub Fac Upp Upp War Pro Res Qua Res Tes Sec Acc Com Ac0 Total 25553 | 62 343 132 1756 901 863 1041 1149 492 1382 932 564 435 469 454 482 577 602 560 315 273 651 1220 491 696 786 389 492 753 572 841 950 616 3284 28 Wait 2844 | 28 11 54 122 148 98 68 34 . 14 6 10 73 . 2 22 12 67 19 20 68 62 110 89 221 32 52 61 68 86 155 159 104 769 . Move 19438 | 23 283 72 1545 610 584 857 1086 475 1338 837 516 275 448 434 331 514 475 468 175 151 473 848 365 410 597 275 271 524 385 568 625 348 2228 24 Hop . | . . . . . . . . . . . . . . . . . . . . . . . . . . . . . . . . . . . Pick Up 275 | 1 5 . 8 23 8 8 . 4 3 9 . 9 1 1 10 2 9 5 15 4 9 36 2 7 14 2 8 9 9 7 14 9 24 . Fast Attach 230 | 1 1 . 4 11 13 10 2 . 3 9 . 5 . 2 4 5 9 1 7 7 4 26 2 3 14 1 3 16 16 3 4 7 37 . Attach 168 | . . . 3 3 3 4 3 . 1 5 1 3 . 2 9 5 2 3 14 3 6 21 . 4 5 2 7 6 3 6 6 10 28 . Detach 85 | . . . . 1 . 4 . . . 5 . 1 . . . 5 . . . 1 1 7 1 . 9 . 1 7 12 4 1 4 21 . Swap 312 | . 7 . 10 17 18 19 8 3 3 7 4 6 4 2 12 8 6 7 19 . 6 25 7 11 14 13 8 13 8 11 17 10 9 . Drop 329 | . 5 . 10 11 21 17 3 2 3 12 . 10 1 1 7 2 7 4 2 7 6 34 3 6 41 3 4 26 20 11 12 6 31 1 Fire 1536 | 9 29 6 43 76 101 35 10 . . 28 32 50 12 9 28 16 18 28 63 32 73 100 17 34 10 41 123 49 28 74 110 114 135 3 Melee 243 | . . . . . 11 19 3 8 17 14 1 3 2 1 59 8 9 1 . . 3 10 . . 23 . 6 34 5 2 2 2 . . Ram . | . . . . . . . . . . . . . . . . . . . . . . . . . . . . . . . . . . . Kick . | . . . . . . . . . . . . . . . . . . . . . . . . . . . . . . . . . . . Crush 15 | . 2 . . 1 6 . . . . . . . . . . . . . . . 2 2 . . . . . . . . . 2 . . Escape Stasis 32 | . . . . . . . . . . . . . . . . . . 24 . . 6 1 . . . . . 1 . . . . . . Rewire 35 | . . . . . . . . . . . . . 1 . . . . . . . . . 5 . 27 . . . . . . . 2 . Trap . | . . . . . . . . . . . . . . . . . . . . . . . . . . . . . . . . . . . Miscellaneous 11 | . . . 11 . . . . . . . . . . . . . . . . . . . . . . . . . . . . . . . Route ------- -11/Junkyard -10/Materials (discovered 3 exits: [*Mat x2] / [*Min]) -10/Mines -10/Subcaves -8/Materials (discovered 5 exits: *Fac x3 / *Sto x2) -8/Storage -7/Factory (discovered 2 exits: *Low x2) -7/Lower Caves (discovered 2 exits: [*Low] / [*Zio]) -7/Lower Caves -7/Zion (discovered 2 exits: [*Dee] / [*Pro]) -7/Deep Caves -6/Proximity Caves -6/Factory (discovered 2 exits: *Low x2) -6/Lower Caves -6/Lower Caves (discovered 2 exits: *Fac / *Dat) -6/Data Miner -5/Proximity Caves -5/Factory (discovered 2 exits: *Fac / *Ext) -5/Extension (discovered 2 exits: *Fac / [*Cet]) -5/Cetus (discovered 2 exits: *Fac / [*Arc]) -5/Archives (discovered 3 exits: *Fac / *Hub x2) -5/Hub_04(d) -4/Factory (discovered 2 exits: *Upp x2) -4/Upper Caves -4/Upper Caves -4/Warlord -3/Proximity Caves -3/Research (discovered 3 exits: Arm / *Qua x2) -3/Quarantine -2/Research -2/Testing -2/Section 7 -1/Access -1/Command (discovered 3 exits: [*Sur x2] / [*Ac0]) -1/Access_0 History --------- Turn | Location | Event 15 | -11/Junkyard | Discovered new exit (range 3) 87 | -11/Junkyard | Entered Materials 190 | -10/Materials | Discovered new exit (range 3) 292 | -10/Materials | Discovered new exit (range 16) 319 | -10/Materials | Build established: Mutant 435 | -10/Materials | Discovered new exit (range 5) 602 | -10/Materials | Entered Mines 782 | -10/Mines | Discovered new exit (range 5) 790 | -10/Mines | Entered Subcaves 946 | -10/Subcaves | Core integrity fell below 50% 1121 | -10/Subcaves | Learned Materials stockpile data 1200 | -10/Subcaves | Shifting Twisted Machinery released Mak. Laser 1211 | -10/Subcaves | Shifting Twisted Machinery released Mak. Armor Plating 1276 | -10/Subcaves | A swath of the cavern ceiling suddenly collapsed 1283 | -10/Subcaves | Build established: Subdweller-Mutant 1582 | -10/Subcaves | Visited Clippyterm 1628 | -10/Subcaves | Disturbed a concealed Subdweller 1707 | -10/Subcaves | Learned Factory stockpile data 2976 | -10/Subcaves | Core integrity fell below 20% 3007 | -10/Subcaves | Learned Materials terminal intel 3465 | -10/Subcaves | Discovered new exit (range 14) 3570 | -10/Subcaves | Entered Materials 3570 | -8/Materials | Evolved 4 slots: Propulsion x2, Utility x2 3572 | -8/Materials | Loaded intel: 12 terminal locations 3633 | -8/Materials | Identified exit to Storage 3961 | -8/Materials | Discovered new exit (range 9) 4282 | -8/Materials | Discovered new exit (range 17) 4479 | -8/Materials | Discovered new exit (range 16) 4564 | -8/Materials | Repaired Lgt. Treads 4591 | -8/Materials | Repaired Lgt. Treads 4965 | -8/Materials | Build established: Mutant 5005 | -8/Materials | Entered Storage 5244 | -8/Storage | Repaired Enh. Autogun 6218 | -8/Storage | Discovered new exit (range 5) 6605 | -8/Storage | First assault squad dispatched 6718 | -8/Storage | Core integrity fell below 50% 6841 | -8/Storage | Entered Factory 6841 | -7/Factory | Evolved 2 slots: Power x1, Utility x1 7514 | -7/Factory | Fabricated Cargo Storage Unit (x1) 7814 | -7/Factory | Build established: Hauler-Mutant 7906 | -7/Factory | Cargo convoy interrupted 7917 | -7/Factory | Identified exit to Lower Caves 8358 | -7/Factory | Entered Lower Caves 8692 | -7/Lower Caves | A Derelict revealed a hidden shortcut to a safe place 9182 | -7/Lower Caves | Discovered new exit (range 9) 10018 | -7/Lower Caves | Entered another Lower Caves area 10349 | -7/Lower Caves | Discovered new exit (range 8) 10504 | -7/Lower Caves | Learned 8 Factory zone layouts 10735 | -7/Lower Caves | Entered Zion 10877 | -7/Zion | Discovered new exit (range 15) 11019 | -7/Zion | Learned location of Warlord (-4) 11145 | -7/Zion | Learned location of Armory (-3) 11576 | -7/Zion | Given the Hacking Drone Bay 11624 | -7/Zion | Received a visual enhancement algorithm 11987 | -7/Zion | Found Prototype Device 12122 | -7/Zion | Gained Derelict followers 12190 | -7/Zion | Gained Derelict followers 12317 | -7/Zion | Discovered new exit (range 5) 12319 | -7/Zion | Saw the warning signs outside the Deep Caves entrance 12754 | -7/Zion | Entered Deep Caves 12754 | -7/Deep Caves | Accompanied by 8 allies 13021 | -7/Deep Caves | Attacked by Z-Imprinter 13044 | -7/Deep Caves | Destroyed Z-Imprinter 13136 | -7/Deep Caves | Found Prototype Protection 13136 | -7/Deep Caves | Identified Zio. Weapon Casing 13243 | -7/Deep Caves | Found Zio. Weapon Casing 13246 | -7/Deep Caves | Found Zio. Weapon Casing 13328 | -7/Deep Caves | Z-Facility disabled 13728 | -7/Deep Caves | Discovered new exit (range 6) 13986 | -7/Deep Caves | Identified Phasing AFG 14111 | -7/Deep Caves | Entered Proximity Caves 14111 | -6/Proximity Caves | Learned Factory interactive machine intel 14258 | -6/Proximity Caves | Attracted the attention of an 0b10 checkpoint 14385 | -6/Proximity Caves | Learned Factory emergency access door positions 14468 | -6/Proximity Caves | Core integrity fell below 50% 14549 | -6/Proximity Caves | Discovered new exit (range 7) 14949 | -6/Proximity Caves | Entered Factory 14949 | -6/Factory | Evolved 2 slots: Utility x2 14950 | -6/Factory | Identified exit to Lower Caves 14952 | -6/Factory | Loaded intel: 52 interactive machine locations 15244 | -6/Factory | Discovered exit to Lower Caves (range 9) 15331 | -6/Factory | Repaired Arm. Huge Wheel? 15446 | -6/Factory | Repaired Arm. Huge Wheel 15594 | -6/Factory | Entered Lower Caves 15715 | -6/Lower Caves | Spotted B-75 Beast 15809 | -6/Lower Caves | Destroyed 8 combat bots 15873 | -6/Lower Caves | Learned location of Extension (-5) 16127 | -6/Lower Caves | Encountered a Warlord checkpoint 16286 | -6/Lower Caves | Discovered new exit (range 5) 16291 | -6/Lower Caves | Attracted the attention of an 0b10 outpost 16292 | -6/Lower Caves | Entered another Lower Caves area 16314 | -6/Lower Caves | Discovered new exit (range 5) 16375 | -6/Lower Caves | Encountered a Warlord checkpoint 16404 | -6/Lower Caves | Found Alien Artifact 16404 | -6/Lower Caves | Identified Core Expander 16404 | -6/Lower Caves | Installed Core Expander, added new Power slot 16521 | -6/Lower Caves | Spotted B-75 Beast 16911 | -6/Lower Caves | Identified exit to Data Miner 16959 | -6/Lower Caves | Entered Data Miner 16962 | -6/Data Miner | Discovered new exit (range 6) 16990 | -6/Data Miner | Met Data Miner 17031 | -6/Data Miner | Learned location of Section 7 (-2) 17031 | -6/Data Miner | Acquired the access code to Warlord's prototype stash 17054 | -6/Data Miner | Received God Mode back door access code from Data Miner 17141 | -6/Data Miner | Data Conduit disabled 17337 | -6/Data Miner | Lost 5 parts (2p1n2u) 17437 | -6/Data Miner | Lost 4 parts (1p2n1u) 17514 | -6/Data Miner | Found Prototype Device 17514 | -6/Data Miner | Identified Exp. Thermal Shield 17720 | -6/Data Miner | Entered Proximity Caves 17839 | -5/Proximity Caves | Spotter reported a threat 18109 | -5/Proximity Caves | Core integrity fell below 50% 18267 | -5/Proximity Caves | Spotted B-75 Beast 18369 | -5/Proximity Caves | Discovered new exit (range 8) 18507 | -5/Proximity Caves | Entered Factory 18507 | -5/Factory | Evolved 2 slots: Utility x2 18508 | -5/Factory | Identified exit to Extension 18704 | -5/Factory | Repaired Broken Arm. Huge Wheel 18741 | -5/Factory | Repaired Prc. Assault Rifle 18791 | -5/Factory | Discovered new exit (range 5) 19359 | -5/Factory | Entered Extension 19680 | -5/Extension | Energy Cycler disabled 19680 | -5/Extension | Rescued a captive Derelict 19687 | -5/Extension | Rescued a captive Derelict 19906 | -5/Extension | Spotted B-75 Beast 19915 | -5/Extension | Extracted ID and sensor layout for unrecognized location from A7's data core 20109 | -5/Extension | Disrupted transfer network 20167 | -5/Extension | Discovered new exit (range 10) 20168 | -5/Extension | Discovered new exit (range 6) 20189 | -5/Extension | Entered Cetus 20208 | -5/Cetus | Spotted Cetus Guard 20208 | -5/Cetus | Spotted Cetus Guard 20211 | -5/Cetus | Destroyed Cetus Guard 20211 | -5/Cetus | Spotted Cetus Guard 20214 | -5/Cetus | Spotted Cetus Guard 20232 | -5/Cetus | Destroyed Cetus Guard 20249 | -5/Cetus | Destroyed Cetus Guard 20258 | -5/Cetus | Destroyed Cetus Guard 20285 | -5/Cetus | Lost 8 parts (1p2n3u2w) 20479 | -5/Cetus | Discovered new exit (range 15) 20555 | -5/Cetus | Spotted Cetus Guard 20556 | -5/Cetus | Spotted Cetus Guard 20557 | -5/Cetus | Destroyed Cetus Guard 20558 | -5/Cetus | Spotted Cetus Guard 20564 | -5/Cetus | Spotted Cetus Guard 20569 | -5/Cetus | Destroyed Cetus Guard 20575 | -5/Cetus | Core integrity fell below 50% 20635 | -5/Cetus | Destroyed 8 combat bots 20668 | -5/Cetus | Lost 8 parts (2p3n1u2w) 20688 | -5/Cetus | Destroyed Cetus Guard 20730 | -5/Cetus | Destroyed Cetus Guard 20804 | -5/Cetus | Discovered new exit (range 15) 20831 | -5/Cetus | Met Revision 17 21048 | -5/Cetus | Entered Archives 21074 | -5/Archives | Core integrity fell below 20% 21162 | -5/Archives | Build established: Scavenger-Mutant 21211 | -5/Archives | Discovered new exit (range 14) 21245 | -5/Archives | Discovered new exit (range 16) 21270 | -5/Archives | Discovered new exit (range 16) 21609 | -5/Archives | Entered Hub_04(d) 22784 | -5/Hub_04(d) | Lost 3 parts (1n1u1w) 22933 | -5/Hub_04(d) | Discovered new exit (range 9) 23067 | -5/Hub_04(d) | Entered Factory 23067 | -4/Factory | Evolved 2 slots: Propulsion x2 23708 | -4/Factory | Identified exit to Upper Caves 23811 | -4/Factory | Lost 4 parts (3n1w) 24002 | -4/Factory | Lost 8 parts (3p5n) 24496 | -4/Factory | Repaired Adv. Variable Charge Gun 24535 | -4/Factory | Repaired Lgt. Nuclear Core? 24757 | -4/Factory | Destroyed 7 combat bots 24852 | -4/Factory | Spotted B-86 Titan 25067 | -4/Factory | First assault squad dispatched 25133 | -4/Factory | Entered Upper Caves 25133 | -4/Upper Caves | Accompanied by 1 ally 25200 | -4/Upper Caves | Learned Research garrison access intel 25935 | -4/Upper Caves | Discovered new exit (range 15) 25982 | -4/Upper Caves | Entered another Upper Caves area 26639 | -4/Upper Caves | Lost 3 parts (2p1n) 26865 | -4/Upper Caves | Discovered new exit (range 15) 27105 | -4/Upper Caves | Entered Warlord 27171 | -4/Warlord | System corruption cleaned by Quarantine Array 27461 | -4/Warlord | Build established: Hauler-Mutant 27774 | -4/Warlord | Found Prototype Device 27877 | -4/Warlord | Met Warlord 27895 | -4/Warlord | Opened Warlord's prototype stash 27902 | -4/Warlord | Warlord's base attacked by MAIN.C 27902 | -4/Warlord | Found Prototype Reactor 27902 | -4/Warlord | Identified Vortex Chain Reactor 27929 | -4/Warlord | Found Prototype Processor 27930 | -4/Warlord | Identified Exp. Target Analyzer 28140 | -4/Warlord | Found Prototype Energy Cannon 28140 | -4/Warlord | Identified Vortex Cannon 28145 | -4/Warlord | Found Vortex Cannon 28149 | -4/Warlord | Found Prototype Energy Gun 28149 | -4/Warlord | Identified Vortex Rifle 28152 | -4/Warlord | Found Vortex Rifle 28160 | -4/Warlord | Met EX-DEC 28162 | -4/Warlord | Found Meganuke 28169 | -4/Warlord | Found Prototype Energy Cannon 28252 | -4/Warlord | Warlord forces counterattacked 28287 | -4/Warlord | Spotted Striker 28325 | -4/Warlord | Spotted Executioner 28330 | -4/Warlord | Spotted Executioner 28366 | -4/Warlord | Spotted Striker 28387 | -4/Warlord | Found Prototype Processor 28387 | -4/Warlord | Identified Exp. Core Analyzer 28411 | -4/Warlord | Discovered new exit (range 13) 28430 | -4/Warlord | Entered Proximity Caves 29121 | -3/Proximity Caves | Spotted B-86 Titan 29251 | -3/Proximity Caves | Discovered new exit (range 6) 29266 | -3/Proximity Caves | Entered Research 29266 | -3/Research | Evolved 2 slots: Utility x2 29267 | -3/Research | Identified exit to Quarantine 29268 | -3/Research | Loaded intel: 4 garrison access locations 29281 | -3/Research | Identified exit to Armory 29357 | -3/Research | Found Quantum Capacitor 29416 | -3/Research | Build established: Scavenger-Mutant 29964 | -3/Research | Destroyed 14 combat bots 30016 | -3/Research | First assault squad dispatched 30130 | -3/Research | Entered Quarantine 30237 | -3/Quarantine | Found Alien Artifact 30350 | -3/Quarantine | Cryocooling Duct disabled 30365 | -3/Quarantine | Ambient heat levels rising (+20) 30365 | -3/Quarantine | Non-combat units ordered to evacuate 30460 | -3/Quarantine | Found Alien Slashing Weapon 30460 | -3/Quarantine | Identified Sigix Broadsword 30547 | -3/Quarantine | Found Alien Artifact 30702 | -3/Quarantine | Identified Core Reset Matrix 30702 | -3/Quarantine | Identified Subatomic Replicator 30702 | -3/Quarantine | Identified Wardrone Bay 30702 | -3/Quarantine | Identified BFG-9k Vortex Edition 30799 | -3/Quarantine | System corruption reached 10% 30902 | -3/Quarantine | Crushed by falling debris 30977 | -3/Quarantine | Found Alien Energy Cannon 30984 | -3/Quarantine | Identified Core Cannon 31092 | -3/Quarantine | Discovered new exit (range 15) 31338 | -3/Quarantine | Identified exit to Research 31423 | -3/Quarantine | Entered Research 31423 | -2/Research | Warlord forces began assault on 0b10 31423 | -2/Research | Evolved 2 slots: Weapon x2 31424 | -2/Research | Identified exit to Testing 31487 | -2/Research | Build established: Hauler-Mutant 31533 | -2/Research | Research machine network offline 31634 | -2/Research | Found Hvy. Reflective Plating 31659 | -2/Research | Met up with Warlord 31954 | -2/Research | Borebot progress halted 32082 | -2/Research | Borebot progress halted 32107 | -2/Research | Spotted Executioner 32107 | -2/Research | Spotted Executioner 32120 | -2/Research | Allies destroyed Executioner 32144 | -2/Research | Allies destroyed Executioner 32145 | -2/Research | Spotted Executioner 32150 | -2/Research | Spotted Executioner 32158 | -2/Research | Allies destroyed Executioner 32160 | -2/Research | Destroyed Executioner 32163 | -2/Research | Found Prototype Device 32163 | -2/Research | Identified Adv. Kinecellerator 32169 | -2/Research | Found Prototype Processor 32169 | -2/Research | Identified Exp. Targeting Computer 32204 | -2/Research | Found Exp. Targeting Computer 32286 | -2/Research | Borebot progress halted 32315 | -2/Research | Spotted Striker 32318 | -2/Research | Spotted Striker 32321 | -2/Research | Allies destroyed Striker 32326 | -2/Research | Allies destroyed Striker 32555 | -2/Research | Entered Testing 32723 | -2/Testing | Found Prototype Device 32731 | -2/Testing | Identified Exp. Hardlight Generator 33021 | -2/Testing | Spotted PH-SQTF4R96O3 33035 | -2/Testing | Allies destroyed PH-SQTF4R96O3 33047 | -2/Testing | Found Prototype Reactor 33048 | -2/Testing | Identified Zero-point Reactor 33064 | -2/Testing | Found Zero-point Reactor 33154 | -2/Testing | Spotted Striker 33154 | -2/Testing | Spotted Striker 33316 | -2/Testing | Found Prototype Ballistic Cannon 33316 | -2/Testing | Identified Omega Cannon 33728 | -2/Testing | Found Prototype Hackware 34036 | -2/Testing | Used Core Reset Matrix 34075 | -2/Testing | Spotted Fortress 34194 | -2/Testing | Discovered new exit (range 5) 34205 | -2/Testing | Entered Section 7 34206 | -2/Section 7 | Sensed 21 artifacts in vicinity 34307 | -2/Section 7 | Found Integrated Reactor 34307 | -2/Section 7 | Installed Integrated Reactor, increased core energy generation (+10) 34548 | -2/Section 7 | Found Integrated Mediator 34799 | -2/Section 7 | Identified System Mapper 34802 | -2/Section 7 | Installed Integrated Mediator, increased core attachment efficiency. 34887 | -2/Section 7 | Spotted S7 Guard 34912 | -2/Section 7 | Found Integrated Thermoelectric Network 34913 | -2/Section 7 | Installed Integrated Thermoelectric Network, gained heat-energy exchange potential 34941 | -2/Section 7 | Discovered new exit (range 8) 34948 | -2/Section 7 | Allies destroyed S7 Guard 34953 | -2/Section 7 | Found Prototype Protection 35057 | -2/Section 7 | System corruption reached 10% 35090 | -2/Section 7 | Build established: Alien-Mutant 35135 | -2/Section 7 | Spotted B-90 Cyclops 35175 | -2/Section 7 | Allies destroyed B-90 Cyclops 35277 | -2/Section 7 | Spotted S7 Guard 35282 | -2/Section 7 | Allies destroyed S7 Guard 35297 | -2/Section 7 | Found Core Regenerator 35451 | -2/Section 7 | Scanned by Researcher 35532 | -2/Section 7 | Found Transdimensional Reconstructor 35539 | -2/Section 7 | Found Transdimensional Reconstructor 35542 | -2/Section 7 | Found Transdimensional Reconstructor 35543 | -2/Section 7 | Warped through subspace 35684 | -2/Section 7 | Warped through subspace 35699 | -2/Section 7 | Spotted Executioner 35699 | -2/Section 7 | Spotted Executioner 35718 | -2/Section 7 | Allies destroyed Executioner 35720 | -2/Section 7 | Allies destroyed Executioner 35954 | -2/Section 7 | Intercept squad dispatched 35968 | -2/Section 7 | Spotted Tracker 35969 | -2/Section 7 | Spotted Tracker 35972 | -2/Section 7 | Destroyed Tracker 35992 | -2/Section 7 | Destroyed Tracker 36009 | -2/Section 7 | Spotted Combat Programmer 36019 | -2/Section 7 | Spotted Combat Programmer 36029 | -2/Section 7 | System corruption reached 30% 36036 | -2/Section 7 | Destroyed Combat Programmer 36044 | -2/Section 7 | Destroyed Combat Programmer 36124 | -2/Section 7 | Entered Access 36124 | -1/Access | Evolved 2 slots: Weapon x2 36415 | -1/Access | First assault squad dispatched 36516 | -1/Access | Identified exit to Command 36855 | -1/Access | Identified Hvy. Regenerative Plating 37016 | -1/Access | Destroyed 20 combat bots 37222 | -1/Access | Intercept squad dispatched 37236 | -1/Access | Spotted Tracker 37243 | -1/Access | Destroyed Tracker 37244 | -1/Access | Spotted Tracker 37255 | -1/Access | Destroyed Tracker 37275 | -1/Access | Spotted Combat Programmer 37276 | -1/Access | Destroyed Combat Programmer 37283 | -1/Access | Spotted Combat Programmer 37309 | -1/Access | Destroyed Combat Programmer 37347 | -1/Access | Spotted B-99 Colossus 37350 | -1/Access | Destroyed 12 combat bots 37475 | -1/Access | Entered Command 37710 | -1/Command | Disengaged cave seal 37710 | -1/Command | Derelicts emerged from the dark tunnel 37711 | -1/Command | Welcomed Warlord to Command 37973 | -1/Command | Used Subatomic Replicator to replicate BFG-9k Vortex Edition 37975 | -1/Command | First assault squad dispatched 37982 | -1/Command | Warlord commented on Warlord statues 37984 | -1/Command | Spotted C1-CQ1(L) 37989 | -1/Command | Spotted Combat Programmer 37989 | -1/Command | Combat Programmer assimilated allied DY-8SM(l) 37994 | -1/Command | Destroyed Combat Programmer 37996 | -1/Command | Destroyed C1-CQ1(L) 38007 | -1/Command | Spotted M Guard 38018 | -1/Command | Destroyed M Guard 38024 | -1/Command | Warlord destroyed during the assault 38024 | -1/Command | Destroyed Warlord 38031 | -1/Command | Destroyed M Guard 38031 | -1/Command | All MAIN.C guards destroyed 38328 | -1/Command | System corruption reached 10% 38329 | -1/Command | Met MAIN.C 38350 | -1/Command | Destroyed MAIN.C Shell 38352 | -1/Command | MAIN.C activated Command garrisons 38370 | -1/Command | Destroyed MAIN.C 38374 | -1/Command | 0b10 Conduit disabled 38393 | -1/Command | Discovered new exit (range 34) 38393 | -1/Command | Discovered new exit (range 97) 38393 | -1/Command | Extracted map data and part IDs from MAIN.C's data core 38501 | -1/Command | Spotted B-99 Colossus 38544 | -1/Command | Destroyed B-99 Colossus 38588 | -1/Command | Lost 11 parts (1p2n3u5w) 38773 | -1/Command | Build established: Hauler-Mutant 39374 | -1/Command | Found Vortex Chain Reactor 39377 | -1/Command | Found Zero-point Reactor 39384 | -1/Command | Found Exp. System Purifier 39637 | -1/Command | Found AEGIS Remote Shield 39644 | -1/Command | Found Exp. Force Field 39647 | -1/Command | Found Exp. Phase Shifter 39917 | -1/Command | Build established: Hauler-Tank 40353 | -1/Command | Found Exp. Targeting Computer 40450 | -1/Command | Build established: Alien-Gunner 40534 | -1/Command | Found Exp. Core Analyzer 40551 | -1/Command | Found Exp. Core Analyzer 40557 | -1/Command | Found Exp. Targeting Computer 41103 | -1/Command | Build established: Alien-Executioner 41203 | -1/Command | Found Exp. Thermal Shield 41235 | -1/Command | Phase Generator disabled 42532 | -1/Command | Warped through subspace to slip node 42532 | -1/Command | Discovered new exit (range 5) 42534 | -1/Command | Used Core Regenerator, restored core integrity (+372) 42541 | -1/Command | Entered Access_0 42542 | -1/Access_0 | Sensed 3 artifacts in vicinity 42544 | -1/Access_0 | Met Architect 42551 | -1/Access_0 | Triggered Meganuke 42551 | -1/Access_0 | Destroyed Architect 42551 | -1/Access_0 | Released all parts (19) 42552 | -1/Access_0 | Architect triggered a singularity event 42554 | -1/Access_0 | Extracted unknown sensor trigger ID from Architect's data core 42563 | -1/Access_0 | Crushed by singularity! Last Messages --------------- 42551_ Released Hvy. Quantum Rifle. 42551_ Released Imp. Armor Integrity Analyzer. 42551_ Released Biometal Heavy Treads. 42551_ Released Huge Storage Unit. 42551_ Released Adv. Heavy Siege Treads. 42551_ Released Exp. Core Analyzer. 42551_ Released Enh. Nova Cannon. 42551_ Released Hvy. Hardcell Cannon. 42552_ A0_COM: Initiating irreversible singularity event. Goodbye. 42553_ A0_COM: 10. 42554_ A0_COM: 9. 42554_ Acquired data core, extracted unknown sensor trigger ID. 42555_ A0_COM: 8. 42556_ A0_COM: 7. 42557_ A0_COM: 6. 42558_ A0_COM: 5. 42559_ A0_COM: 4. 42560_ A0_COM: 3. 42561_ A0_COM: 2. 42562_ A0_COM: 1. Map ----- +----------------------------------------------------+ | ?????????????????????????????????????????????????? | | ?????????????????????????????????????????????????? | | ?????????????????????????????????????????????????? | | ?????????????????????????????????????????????????? | | ?????????????????????????????????????????????????? | | ?????????????????????????????????????????????????? | | ?????????????????????????????????????????????????? | | ?????????????????????????????????????????????????? | | ?????????????????????????????????????????????????? | | ?????????????????????????????????????????????????? | | ??????????????????????????## ????????????????????? | | ??????????????????????#### ??????????????????? | | ????????????????????### ;;; ???????????????? | | ?????????????????#### ;; ;; ?????????????? | | ????????????????##; ;; ; ;; ???????????? | | ???????????????##;; ;; ; ; ??????????? | | ???????????????#;; ; ; ; ?????????? | | ?????????????### ; ;; ; ????????? | | ???????????? # ;;;;; ;; ; ???????? | | ???????????? ; ; ;;; ; ???????? | | ?????????????# ;;;; ;;;; ??????? | | ?????????????# ;; ; ;;; ??????? | | ???????????### ; ; ;; ?????? | | ?????????? ; ;;; ;;;;;; ?????? | | ?????????? ;;;;;; ; ?????? | | ????????????#; @ ; ????? | | ???????????# ;; ;; ;;; ; ??? | | ???????????# ;;;;;; ;;;;; ; | | ???????????# ;; ;; ; | | ???????????;;;;;;;; ;; ;;; | | ???????????? ;;;; ; | | ???????????? ; ; ; | | ????????????;;;; ;; ; ; ; | | ????????????? ;; ;;;;; ; ; | | ????????????? ;;; ;; ;;;; ; | | ?????????????? ;; ;;;;;; ;; ;;; | | ?????????????? ; ; ;""""""" "" | | ??????????????? ;;;;; " *] " | | ??????????????? ;;;;;;; ]!=*= " | | ???????????????? """";;;; !]!**""" | | ???????????????? " " !!!!=!] | | ?????????????????" " """ !!*![!"" | | ?????????????????" " " "" "" " " =![]! | | ?????????????????" " " " "" """ """ """"! " | | ??????????????????"" """" " """ """ """" | | ?????????????????? """"""""""" | | ??????????????????? "" | | ??????????????????? " | | ????????????????????" "" " "" " | | ????????????????????? " " | +----------------------------------------------------+ Best States ------------- Heat Dissipation 119 Coolant Potential 160 Energy Generation 124 Energy Capacity 2540 Matter Stores 300 Matter Capacity 300 Sight Range 23 Robot Scan Range 16 Terrain Scan Density 10 Jamming Range 16 Power Amplification 40 Armor Coverage 1650 Resistance: TH 30 Resistance: EM 20 Core Shielding 30 Weapon Shielding 100 Weapon Cycling 25 Phase Shifting 20 Evasion (%) 60 Targeting Accuracy 24 Melee Accuracy 8 Core Analysis 8 Armor Integrity Analysis 40 Recoil Reduction 6 Matter Filtering 50 Particle Charging 20 Salvage Targeting 4 Offensive Hacking 28 Authchip Count 1 Trap Extractor Capacity 6 Item Schematics ----------------- Hvy. Proton Cannon | -2/Section 7 | Archive Exp. Biometal Medium Treads | -2/Section 7 | Archive Exp. Cooling System | -2/Section 7 | Archive Robot Schematics ------------------ G-67 Veteran | -2/Section 7 | Archive Fabricated ------------ Cargo Storage Unit | x1 | -7/Factory | Authchip Alien Tech Used ----------------- Core Expander Sigix Broadsword Core Cannon Core Reset Matrix Integrated Reactor Integrated Mediator Integrated Thermoelectric Network Transdimensional Reconstructor Subatomic Replicator Core Regenerator Achievements -------------- None Challenges ------------ None Game ------ Seed FlightCloakingRedirector Manual? 0 Play Time 08:10:37 Cumulative 1470.6 hours Start 2023.08.18 @ 22:29:30 End 2023.08.19 @ 20:50:13 Sessions 3 Manual Loads 0 Difficulty Rogue Special Mode None Game No. 413 Rogue 413 Adventurer 0 Explorer 0 Win Type - Total 84 Types 13/18/16/3/1/2/27/2/2 Lore% 95 Gallery% 96 Achievement% 88 Wizard Run 0 Options --------- ASCII 0 Keyboard 0 Movement Numpad Keybinds 0 Fullscreen 2 Font 24/Smallcaps Map View 76x50 Tactical HUD 1 Map Filters NONE Filters NONE Steam 1 RUN: 1b1d4439-6d63-4a3b-9faf-b573d840e9ab